Workbook

Sheet Dashboard
B1: Team Performance Dashboard
B3: Sales Overview
B22: % Productive Time - Team
B33: % Staff Performance
B52: Revenue

Sheet Team Performance
A1: Team | B1: Team Members | C1: Product | D1: Sale Date | E1: Region | F1: Login Hours | G1: Total Talk Time | H1: Total Hold Time | I1: Sales | J1: Sales Per Hour | K1: Revenue | L1: Revenue Per Hour | M1: Calls | N1: Excellent | O1: Good | P1: Fair | Q1: Poor | R1: Total | S1: CSAT% (Customer Satisfaction)
A2: Team A | B2: Sydnee | C2: Product 1 | D2: 2014-06-01 | E2: Alabama | F2: 7.5 | G2: 7.4 | H2: 0.5 | I2: 37 | J2: =I2/G2 -> 5 | K2: 1258 | L2: =K2/G2 -> 170 | M2: 358 | N2: 24 | O2: 40 | P2: 32 | Q2: 15 | R2: =SUM(N2:Q2) -> 111 | S2: =SUM(N2:O2)/R2 -> 0.5765765766
A3: Team A | B3: Amber | C3: Product 2 | D3: 2014-06-01 | E3: California | F3: 8.5 | G3: 8.2 | H3: 0.7 | I3: 39 | J3: =I3/G3 -> 4.756097561 | K3: 1326 | L3: =K3/G3 -> 161.7073171 | M3: 323 | N3: 20 | O3: 35 | P3: 34 | Q3: 15 | R3: =SUM(N3:Q3) -> 104 | S3: =SUM(N3:O3)/R3 -> 0.5288461538
A4: Team A | B4: Constance | C4: Product 1 | D4: 2014-06-01 | E4: Colorado | F4: 9.5 | G4: 9 | H4: 0.3 | I4: 41 | J4: 4.555555556 | K4: 1394 | L4: 154.8888889 | M4: 310 | N4: 40 | O4: 32 | P4: 30 | Q4: 11 | R4: 113 | S4: 0.6371681416
A5: Team A | B5: Nola | C5: Product 2 | D5: 2014-06-01 | E5: Connecticut | F5: 9 | G5: 8.3 | H5: 0.8 | I5: 51 | J5: 6.144578313 | K5: 1734 | L5: 208.9156627 | M5: 327 | N5: 25 | O5: 36 | P5: 33 | Q5: 12 | R5: 106 | S5: 0.5754716981
A6: Team A | B6: Libby | C6: Product 1 | D6: 2014-06-01 | E6: Florida | F6: 8.5 | G6: 7.6 | H6: 0.2 | I6: 58 | J6: 7.631578947 | K6: 1972 | L6: 259.4736842 | M6: 367 | N6: 27 | O6: 37 | P6: 36 | Q6: 12 | R6: 112 | S6: 0.5714285714
A7: Team A | B7: Tashya | C7: Product 2 | D7: 2014-06-01 | E7: Hawaii | F7: 8.4 | G7: 7.3 | H7: 0.6 | I7: 64 | J7: 8.767123288 | K7: 2176 | L7: 298.0821918 | M7: 379 | N7: 23 | O7: 37 | P7: 33 | Q7: 11 | R7: 104 | S7: 0.5769230769
A8: Team A | B8: Flavia | C8: Product 1 | D8: 2014-06-01 | E8: Alabama | F8: 8.6 | G8: 7.3 | H8: 0.5 | I8: 60 | J8: 8.219178082 | K8: 2040 | L8: 279.4520548 | M8: 302 | N8: 24 | O8: 37 | P8: 33 | Q8: 12 | R8: 106 | S8: 0.5754716981
A9: Team A | B9: Guinevere | C9: Product 2 | D9: 2014-06-01 | E9: California | F9: 8.5 | G9: 7 | H9: 0.7 | I9: 69 | J9: 9.857142857 | K9: 2346 | L9: 335.1428571 | M9: 380 | N9: 21 | O9: 32 | P9: 33 | Q9: 11 | R9: 97 | S9: 0.5463917526
A10: Team A | B10: Darryl | C10: Product 1 | D10: 2014-06-01 | E10: Colorado | F10: 8.2 | G10: 6.5 | H10: 0.3 | I10: 75 | J10: 11.53846154 | K10: 2550 | L10: 392.3076923 | M10: 394 | N10: 30 | O10: 38 | P10: 35 | Q10: 13 | R10: 116 | S10: 0.5862068966
A11: Team A | B11: Farrah | C11: Product 2 | D11: 2014-06-01 | E11: Connecticut | F11: 9.2 | G11: 7.3 | H11: 0.8 | I11: 84 | J11: 11.50684932 | K11: 2856 | L11: 391.2328767 | M11: 321 | N11: 27 | O11: 32 | P11: 40 | Q11: 14 | R11: 113 | S11: 0.5221238938
A12: Team B | B12: Rowan | C12: Product 1 | D12: 2014-06-01 | E12: Florida | F12: 8.5 | G12: 6.4 | H12: 0.2 | I12: 80 | J12: 12.5 | K12: 2720 | L12: 425 | M12: 348 | N12: 20 | O12: 38 | P12: 30 | Q12: 10 | R12: 98 | S12: 0.5918367347
A13: Team B | B13: Quyn | C13: Product 2 | D13: 2014-06-01 | E13: Hawaii | F13: 6.8 | G13: 4.5 | H13: 0.6 | I13: 71 | J13: 15.77777778 | K13: 2414 | L13: 536.4444444 | M13: 381 | N13: 23 | O13: 34 | P13: 36 | Q13: 11 | R13: 104 | S13: 0.5480769231
A14: Team B | B14: Xantha | C14: Product 1 | D14: 2014-06-01 | E14: Alabama | F14: 6.9 | G14: 4.4 | H14: 0.5 | I14: 69 | J14: 15.68181818 | K14: 2346 | L14: 533.1818182 | M14: 335 | N14: 28 | O14: 31 | P14: 33 | Q14: 15 | R14: 107 | S14: 0.5514018692
A15: Team B | B15: Winifred | C15: Product 2 | D15: 2014-06-01 | E15: California | F15: 6.1 | G15: 3.4 | H15: 0.7 | I15: 58 | J15: 17.05882353 | K15: 1972 | L15: 580 | M15: 327 | N15: 23 | O15: 30 | P15: 33 | Q15: 11 | R15: 97 | S15: 0.5463917526
A16: Team B | B16: Iona | C16: Product 1 | D16: 2014-06-01 | E16: Colorado | F16: 5.2 | G16: 2.3 | H16: 0.3 | I16: 58 | J16: 25.2173913 | K16: 1972 | L16: 857.3913043 | M16: 369 | N16: 21 | O16: 40 | P16: 34 | Q16: 10 | R16: 105 | S16: 0.580952381
A17: Team B | B17: Keelie | C17: Product 2 | D17: 2014-06-01 | E17: Connecticut | F17: 5.5 | G17: 2.4 | H17: 0.8 | I17: 54 | J17: 22.5 | K17: 1836 | L17: 765 | M17: 365 | N17: 29 | O17: 34 | P17: 36 | Q17: 14 | R17: 113 | S17: 0.5575221239
A18: Team B | B18: Brynne | C18: Product 1 | D18: 2014-06-01 | E18: Florida | F18: 5.5 | G18: 5.4 | H18: 0.2 | I18: 44 | J18: 8.148148148 | K18: 1496 | L18: 277.037037 | M18: 370 | N18: 27 | O18: 38 | P18: 33 | Q18: 14 | R18: 112 | S18: 0.5803571429
A19: Team B | B19: Sierra | C19: Product 2 | D19: 2014-06-01 | E19: Hawaii | F19: 8.8 | G19: 8.5 | H19: 0.6 | I19: 35 | J19: 4.117647059 | K19: 1190 | L19: 140 | M19: 302 | N19: 21 | O19: 34 | P19: 36 | Q19: 13 | R19: 104 | S19: 0.5288461538
A20: Team B | B20: Gay | C20: Product 1 | D20: 2014-06-01 | E20: Alabama | F20: 8.3 | G20: 7.8 | H20: 0.5 | I20: 33 | J20: 4.230769231 | K20: 1122 | L20: 143.8461538 | M20: 316 | N20: 28 | O20: 33 | P20: 34 | Q20: 11 | R20: 106 | S20: 0.5754716981
A21: Team B | B21: Inez | C21: Product 2 | D21: 2014-06-01 | E21: California | F21: 9.4 | G21: 8.7 | H21: 0.7 | I21: 40 | J21: 4.597701149 | K21: 1360 | L21: 156.3218391 | M21: 330 | N21: 24 | O21: 32 | P21: 30 | Q21: 10 | R21: 96 | S21: 0.5833333333
A22: Team C | B22: Illana | C22: Product 1 | D22: 2014-06-01 | E22: Colorado | F22: 8.3 | G22: 7.4 | H22: 0.3 | I22: 35 | J22: 4.72972973 | K22: 1190 | L22: 160.8108108 | M22: 356 | N22: 21 | O22: 35 | P22: 35 | Q22: 10 | R22: 101 | S22: 0.5544554455
A23: Team C | B23: Renee | C23: Product 2 | D23: 2014-06-01 | E23: Connecticut | F23: 8.2 | G23: 7.1 | H23: 0.8 | I23: 48 | J23: 6.76056338 | K23: 1632 | L23: 229.8591549 | M23: 397 | N23: 23 | O23: 32 | P23: 33 | Q23: 13 | R23: 101 | S23: 0.5445544554
A24: Team C | B24: Olympia | C24: Product 1 | D24: 2014-06-01 | E24: Florida | F24: 8 | G24: 6.7 | H24: 0.2 | I24: 54 | J24: 8.059701493 | K24: 1836 | L24: 274.0298507 | M24: 379 | N24: 20 | O24: 36 | P24: 31 | Q24: 14 | R24: 101 | S24: 0.5544554455
A25: Team C | B25: Camille | C25: Product 2 | D25: 2014-06-01 | E25: Hawaii | F25: 9 | G25: 7.5 | H25: 0.6 | I25: 56 | J25: 7.466666667 | K25: 1904 | L25: 253.8666667 | M25: 348 | N25: 22 | O25: 30 | P25: 37 | Q25: 14 | R25: 103 | S25: 0.5048543689
A26: Team C | B26: Shaine | C26: Product 1 | D26: 2014-06-01 | E26: Alabama | F26: 9.8 | G26: 8.1 | H26: 0.5 | I26: 59 | J26: 7.283950617 | K26: 2006 | L26: 247.654321 | M26: 356 | N26: 28 | O26: 38 | P26: 40 | Q26: 14 | R26: 120 | S26: 0.55
A27: Team C | B27: Maris | C27: Product 2 | D27: 2014-06-01 | E27: California | F27: 8 | G27: 6.1 | H27: 0.7 | I27: 64 | J27: 10.49180328 | K27: 2176 | L27: 356.7213115 | M27: 354 | N27: 28 | O27: 38 | P27: 36 | Q27: 11 | R27: 113 | S27: 0.5840707965
A28: Team C | B28: Jana | C28: Product 1 | D28: 2014-06-01 | E28: Colorado | F28: 9.1 | G28: 7 | H28: 0.3 | I28: 72 | J28: 10.28571429 | K28: 2448 | L28: 349.7142857 | M28: 341 | N28: 22 | O28: 30 | P28: 31 | Q28: 14 | R28: 97 | S28: 0.5360824742
A29: Team C | B29: Audra | C29: Product 2 | D29: 2014-06-01 | E29: Connecticut | F29: 7.8 | G29: 5.5 | H29: 0.8 | I29: 71 | J29: 12.90909091 | K29: 2414 | L29: 438.9090909 | M29: 376 | N29: 28 | O29: 39 | P29: 33 | Q29: 12 | R29: 112 | S29: 0.5982142857
A30: Team C | B30: Rosalyn | C30: Product 1 | D30: 2014-06-01 | E30: Florida | F30: 6.5 | G30: 4 | H30: 0.2 | I30: 76 | J30: 19 | K30: 2584 | L30: 646 | M30: 353 | N30: 27 | O30: 37 | P30: 35 | Q30: 12 | R30: 111 | S30: 0.5765765766
A31: Team C | B31: April | C31: Product 2 | D31: 2014-06-01 | E31: Hawaii | F31: 6.5 | G31: 3.8 | H31: 0.6 | I31: 70 | J31: 18.42105263 | K31: 2380 | L31: 626.3157895 | M31: 324 | N31: 25 | O31: 32 | P31: 31 | Q31: 14 | R31: 102 | S31: 0.5588235294
A32: Team D | B32: Dara | C32: Product 1 | D32: 2014-06-01 | E32: Alabama | F32: 6.5 | G32: 3.6 | H32: 0.5 | I32: 68 | J32: 18.88888889 | K32: 2312 | L32: 642.2222222 | M32: 364 | N32: 21 | O32: 32 | P32: 37 | Q32: 13 | R32: 103 | S32: 0.5145631068
A33: Team D | B33: Daria | C33: Product 2 | D33: 2014-06-01 | E33: California | F33: 6.5 | G33: 3.4 | H33: 0.7 | I33: 65 | J33: 19.11764706 | K33: 2210 | L33: 650 | M33: 357 | N33: 24 | O33: 30 | P33: 39 | Q33: 11 | R33: 104 | S33: 0.5192307692
A34: Team D | B34: Ariel | C34: Product 1 | D34: 2014-06-01 | E34: Colorado | F34: 5.3 | G34: 2 | H34: 0.3 | I34: 55 | J34: 27.5 | K34: 1870 | L34: 935 | M34: 301 | N34: 27 | O34: 39 | P34: 39 | Q34: 11 | R34: 116 | S34: 0.5689655172
A35: Team D | B35: Hermione | C35: Product 2 | D35: 2014-06-01 | E35: Connecticut | F35: 5.4 | G35: 1.9 | H35: 0.8 | I35: 51 | J35: 26.84210526 | K35: 1734 | L35: 912.6315789 | M35: 398 | N35: 29 | O35: 31 | P35: 33 | Q35: 11 | R35: 104 | S35: 0.5769230769
A36: Team D | B36: Aileen | C36: Product 1 | D36: 2014-06-01 | E36: Florida | F36: 8.1 | G36: 4.4 | H36: 0.2 | I36: 49 | J36: 11.13636364 | K36: 1666 | L36: 378.6363636 | M36: 324 | N36: 22 | O36: 36 | P36: 39 | Q36: 14 | R36: 111 | S36: 0.5225225225
A37: Team D | B37: Cheyenne | C37: Product 2 | D37: 2014-06-01 | E37: Hawaii | F37: 8 | G37: 4.1 | H37: 0.6 | I37: 44 | J37: 10.73170732 | K37: 1496 | L37: 364.8780488 | M37: 307 | N37: 24 | O37: 33 | P37: 40 | Q37: 11 | R37: 108 | S37: 0.5277777778
A38: Team D | B38: Lois | C38: Product 1 | D38: 2014-06-01 | E38: Alabama | F38: 9 | G38: 4.9 | H38: 0.5 | I38: 36 | J38: 7.346938776 | K38: 1224 | L38: 249.7959184 | M38: 327 | N38: 28 | O38: 33 | P38: 37 | Q38: 12 | R38: 110 | S38: 0.5545454545
A39: Team D | B39: Madeson | C39: Product 2 | D39: 2014-06-01 | E39: California | F39: 8.7 | G39: 4.4 | H39: 0.7 | I39: 31 | J39: 7.045454545 | K39: 1054 | L39: 239.5454545 | M39: 394 | N39: 29 | O39: 37 | P39: 34 | Q39: 11 | R39: 111 | S39: 0.5945945946
A40: Team D | B40: Ariana | C40: Product 1 | D40: 2014-06-01 | E40: Colorado | F40: 9.5 | G40: 5 | H40: 0.3 | I40: 39 | J40: 7.8 | K40: 1326 | L40: 265.2 | M40: 369 | N40: 21 | O40: 40 | P40: 34 | Q40: 15 | R40: 110 | S40: 0.5545454545
A41: Team D | B41: Kendall | C41: Product 2 | D41: 2014-06-01 | E41: Connecticut | F41: 7.8 | G41: 3.1 | H41: 0.8 | I41: 44 | J41: 14.19354839 | K41: 1496 | L41: 482.5806452 | M41: 338 | N41: 5 | O41: 3 | P41: 2 | Q41: 15 | R41: 25 | S41: 0.32
A42: Team E | B42: Lacy | C42: Product 1 | D42: 2014-06-01 | E42: Florida | F42: 8.9 | G42: 8 | H42: 0.2 | I42: 47 | J42: 5.875 | K42: 1598 | L42: 199.75 | M42: 377 | N42: 27 | O42: 30 | P42: 34 | Q42: 10 | R42: 101 | S42: 0.5643564356
A43: Team E | B43: Heather | C43: Product 2 | D43: 2014-06-01 | E43: Hawaii | F43: 9.1 | G43: 8 | H43: 0.6 | I43: 47 | J43: 5.875 | K43: 1598 | L43: 199.75 | M43: 398 | N43: 28 | O43: 31 | P43: 32 | Q43: 10 | R43: 101 | S43: 0.5841584158
A44: Team E | B44: Nevada | C44: Product 1 | D44: 2014-06-01 | E44: Alabama | F44: 9 | G44: 7.7 | H44: 0.5 | I44: 58 | J44: 7.532467532 | K44: 1972 | L44: 256.1038961 | M44: 320 | N44: 5 | O44: 4 | P44: 39 | Q44: 12 | R44: 60 | S44: 0.15
A45: Team E | B45: Mercedes | C45: Product 2 | D45: 2014-06-01 | E45: California | F45: 8.5 | G45: 7 | H45: 0.7 | I45: 65 | J45: 9.285714286 | K45: 2210 | L45: 315.7142857 | M45: 338 | N45: 24 | O45: 34 | P45: 33 | Q45: 12 | R45: 103 | S45: 0.5631067961
A46: Team E | B46: Courtney | C46: Product 1 | D46: 2014-06-01 | E46: Colorado | F46: 8.1 | G46: 6.4 | H46: 0.3 | I46: 68 | J46: 10.625 | K46: 2312 | L46: 361.25 | M46: 371 | N46: 29 | O46: 30 | P46: 38 | Q46: 12 | R46: 109 | S46: 0.5412844037
A47: Team E | B47: Amanda | C47: Product 2 | D47: 2014-06-01 | E47: Connecticut | F47: 7.1 | G47: 5.2 | H47: 0.8 | I47: 67 | J47: 12.88461538 | K47: 2278 | L47: 438.0769231 | M47: 347 | N47: 20 | O47: 40 | P47: 35 | Q47: 15 | R47: 110 | S47: 0.5454545455
A48: Team E | B48: Madeline | C48: Product 1 | D48: 2014-06-01 | E48: Florida | F48: 6 | G48: 3.9 | H48: 0.2 | I48: 78 | J48: 20 | K48: 2652 | L48: 680 | M48: 368 | N48: 30 | O48: 40 | P48: 38 | Q48: 15 | R48: 123 | S48: 0.5691056911
A49: Team E | B49: Zia | C49: Product 2 | D49: 2014-06-01 | E49: Hawaii | F49: 6 | G49: 3.7 | H49: 0.6 | I49: 85 | J49: 22.97297297 | K49: 2890 | L49: 781.0810811 | M49: 353 | N49: 22 | O49: 31 | P49: 37 | Q49: 13 | R49: 103 | S49: 0.5145631068
A50: Team E | B50: Miriam | C50: Product 1 | D50: 2014-06-01 | E50: Alabama | F50: 6.2 | G50: 3.7 | H50: 0.5 | I50: 79 | J50: 21.35135135 | K50: 2686 | L50: 725.9459459 | M50: 339 | N50: 30 | O50: 40 | P50: 30 | Q50: 11 | R50: 111 | S50: 0.6306306306
A51: Team E | B51: Quin | C51: Product 2 | D51: 2014-06-01 | E51: California | F51: 6.3 | G51: 3.6 | H51: 0.7 | I51: 66 | J51: 18.33333333 | K51: 2244 | L51: 623.3333333 | M51: 395 | N51: 23 | O51: 35 | P51: 37 | Q51: 12 | R51: 107 | S51: 0.5420560748
A52: Team F | B52: Ivory | C52: Product 1 | D52: 2014-06-01 | E52: Colorado | F52: 4.8 | G52: 1.9 | H52: 0.3 | I52: 64 | J52: 33.68421053 | K52: 2176 | L52: 1145.263158 | M52: 316 | N52: 30 | O52: 40 | P52: 36 | Q52: 15 | R52: 121 | S52: 0.5785123967
A53: Team F | B53: Stacy | C53: Product 2 | D53: 2014-06-01 | E53: Connecticut | F53: 8.4 | G53: 5.3 | H53: 0.8 | I53: 65 | J53: 12.26415094 | K53: 2210 | L53: 416.9811321 | M53: 383 | N53: 30 | O53: 30 | P53: 36 | Q53: 10 | R53: 106 | S53: 0.5660377358
A54: Team F | B54: Dai | C54: Product 1 | D54: 2014-06-01 | E54: Florida | F54: 8.6 | G54: 5.3 | H54: 0.2 | I54: 51 | J54: 9.622641509 | K54: 1734 | L54: 327.1698113 | M54: 336 | N54: 23 | O54: 38 | P54: 35 | Q54: 10 | R54: 106 | S54: 0.5754716981
A55: Team F | B55: Shelley | C55: Product 2 | D55: 2014-06-01 | E55: Hawaii | F55: 8.5 | G55: 5 | H55: 0.6 | I55: 50 | J55: 10 | K55: 1700 | L55: 340 | M55: 333 | N55: 20 | O55: 31 | P55: 34 | Q55: 13 | R55: 98 | S55: 0.5204081633
A56: Team F | B56: Shelby | C56: Product 1 | D56: 2014-06-01 | E56: Alabama | F56: 8.2 | G56: 4.5 | H56: 0.5 | I56: 47 | J56: 10.44444444 | K56: 1598 | L56: 355.1111111 | M56: 389 | N56: 20 | O56: 39 | P56: 39 | Q56: 13 | R56: 111 | S56: 0.5315315315
A57: Team F | B57: Riley | C57: Product 2 | D57: 2014-06-01 | E57: California | F57: 9.2 | G57: 5.3 | H57: 0.7 | I57: 43 | J57: 8.113207547 | K57: 1462 | L57: 275.8490566 | M57: 334 | N57: 30 | O57: 38 | P57: 30 | Q57: 11 | R57: 109 | S57: 0.623853211
A58: Team F | B58: Cleo | C58: Product 1 | D58: 2014-06-01 | E58: Colorado | F58: 8.8 | G58: 4.7 | H58: 0.3 | I58: 35 | J58: 7.446808511 | K58: 1190 | L58: 253.1914894 | M58: 307 | N58: 28 | O58: 33 | P58: 32 | Q58: 12 | R58: 105 | S58: 0.580952381
A59: Team F | B59: Patricia | C59: Product 2 | D59: 2014-06-01 | E59: Connecticut | F59: 8.3 | G59: 4 | H59: 0.8 | I59: 34 | J59: 8.5 | K59: 1156 | L59: 289 | M59: 378 | N59: 24 | O59: 35 | P59: 37 | Q59: 13 | R59: 109 | S59: 0.5412844037
A60: Team F | B60: Britanney | C60: Product 1 | D60: 2014-06-01 | E60: Florida | F60: 9.4 | G60: 4.9 | H60: 0.2 | I60: 35 | J60: 7.142857143 | K60: 1190 | L60: 242.8571429 | M60: 357 | N60: 27 | O60: 30 | P60: 31 | Q60: 12 | R60: 100 | S60: 0.57
A61: Team F | B61: Tatum | C61: Product 2 | D61: 2014-06-01 | E61: Hawaii | F61: 8.3 | G61: 3.6 | H61: 0.6 | I61: 43 | J61: 11.94444444 | K61: 1462 | L61: 406.1111111 | M61: 370 | N61: 22 | O61: 33 | P61: 32 | Q61: 15 | R61: 102 | S61: 0.5392156863
A62: Team G | B62: Katelyn | C62: Product 1 | D62: 2014-06-01 | E62: Alabama | F62: 8.2 | G62: 7.3 | H62: 0.5 | I62: 51 | J62: 6.98630137 | K62: 1734 | L62: 237.5342466 | M62: 322 | N62: 24 | O62: 30 | P62: 32 | Q62: 14 | R62: 100 | S62: 0.54
A63: Team G | B63: Pamela | C63: Product 2 | D63: 2014-06-01 | E63: California | F63: 7.7 | G63: 6.6 | H63: 0.7 | I63: 57 | J63: 8.636363636 | K63: 1938 | L63: 293.6363636 | M63: 326 | N63: 29 | O63: 33 | P63: 38 | Q63: 13 | R63: 113 | S63: 0.5486725664
A64: Team G | B64: Rhoda | C64: Product 1 | D64: 2014-06-01 | E64: Colorado | F64: 7.5 | G64: 6.2 | H64: 0.3 | I64: 61 | J64: 9.838709677 | K64: 2074 | L64: 334.516129 | M64: 339 | N64: 25 | O64: 32 | P64: 31 | Q64: 14 | R64: 102 | S64: 0.5588235294
A65: Team G | B65: Deanna | C65: Product 2 | D65: 2014-06-01 | E65: Connecticut | F65: 7.3 | G65: 5.8 | H65: 0.8 | I65: 65 | J65: 11.20689655 | K65: 2210 | L65: 381.0344828 | M65: 390 | N65: 21 | O65: 33 | P65: 35 | Q65: 13 | R65: 102 | S65: 0.5294117647
A66: Team G | B66: Mallory | C66: Product 1 | D66: 2014-06-01 | E66: Florida | F66: 5.8 | G66: 4.1 | H66: 0.2 | I66: 69 | J66: 16.82926829 | K66: 2346 | L66: 572.195122 | M66: 330 | N66: 30 | O66: 33 | P66: 40 | Q66: 13 | R66: 116 | S66: 0.5431034483
A67: Team G | B67: Medge | C67: Product 2 | D67: 2014-06-01 | E67: Hawaii | F67: 6.1 | G67: 4.2 | H67: 0.6 | I67: 70 | J67: =I67/G67 -> 16.66666667 | K67: 2380 | L67: =K67/G67 -> 566.6666667 | M67: 392 | N67: 27 | O67: 30 | P67: 30 | Q67: 12 | R67: =SUM(N67:Q67) -> 99 | S67: =SUM(N67:O67)/R67 -> 0.5757575758
A68: Team G | B68: Dana | C68: Product 1 | D68: 2014-06-01 | E68: Alabama | F68: 5.6 | G68: 3.5 | H68: 0.5 | I68: 82 | J68: 23.42857143 | K68: 2788 | L68: 796.5714286 | M68: 396 | N68: 27 | O68: 30 | P68: 38 | Q68: 15 | R68: 110 | S68: 0.5181818182
A69: Team G | B69: Regina | C69: Product 2 | D69: 2014-06-01 | E69: California | F69: 4.5 | G69: 2.2 | H69: 0.7 | I69: 75 | J69: 34.09090909 | K69: 2550 | L69: 1159.090909 | M69: 372 | N69: 21 | O69: 39 | P69: 35 | Q69: 13 | R69: 108 | S69: 0.5555555556
A70: Team G | B70: Kirby | C70: Product 1 | D70: 2014-06-01 | E70: Colorado | F70: 8 | G70: 5.5 | H70: 0.3 | I70: 66 | J70: 12 | K70: 2244 | L70: 408 | M70: 352 | N70: 23 | O70: 39 | P70: 32 | Q70: 14 | R70: 108 | S70: 0.5740740741
A71: Team G | B71: Rae | C71: Product 2 | D71: 2014-06-01 | E71: Connecticut | F71: 9 | G71: 6.3 | H71: 0.8 | I71: 70 | J71: 11.11111111 | K71: 2380 | L71: 377.7777778 | M71: 373 | N71: 28 | O71: 31 | P71: 40 | Q71: 10 | R71: 109 | S71: 0.5412844037
A72: Team H | B72: Frances | C72: Product 1 | D72: 2014-06-01 | E72: Florida | F72: 9.8 | G72: 6.9 | H72: 0.2 | I72: 56 | J72: 8.115942029 | K72: 1904 | L72: 275.942029 | M72: 394 | N72: 27 | O72: 37 | P72: 37 | Q72: 10 | R72: 111 | S72: 0.5765765766
A73: Team H | B73: Xerxes | C73: Product 2 | D73: 2014-06-01 | E73: Hawaii | F73: 8 | G73: 4.9 | H73: 0.6 | I73: 59 | J73: 12.04081633 | K73: 2006 | L73: 409.3877551 | M73: 303 | N73: 29 | O73: 38 | P73: 32 | Q73: 13 | R73: 112 | S73: 0.5982142857
A74: Team H | B74: Carolyn | C74: Product 1 | D74: 2014-06-01 | E74: Alabama | F74: 9.1 | G74: 5.8 | H74: 0.5 | I74: 53 | J74: 9.137931034 | K74: 1802 | L74: 310.6896552 | M74: 382 | N74: 23 | O74: 33 | P74: 33 | Q74: 11 | R74: 100 | S74: 0.56
A75: Team H | B75: Zenia | C75: Product 2 | D75: 2014-06-01 | E75: California | F75: 8.1 | G75: 4.6 | H75: 0.7 | I75: 46 | J75: 10 | K75: 1564 | L75: 340 | M75: 316 | N75: 28 | O75: 36 | P75: 35 | Q75: 11 | R75: 110 | S75: 0.5818181818
A76: Team H | B76: Phyllis | C76: Product 1 | D76: 2014-06-01 | E76: Colorado | F76: 8 | G76: 4.3 | H76: 0.3 | I76: 37 | J76: 8.604651163 | K76: 1258 | L76: 292.5581395 | M76: 334 | N76: 29 | O76: 31 | P76: 30 | Q76: 11 | R76: 101 | S76: 0.5940594059
A77: Team H | B77: Ashely | C77: Product 2 | D77: 2014-06-01 | E77: Connecticut | F77: 9 | G77: 5.1 | H77: 0.8 | I77: 36 | J77: 7.058823529 | K77: 1224 | L77: 240 | M77: 391 | N77: 27 | O77: 31 | P77: 35 | Q77: 13 | R77: 106 | S77: 0.5471698113
A78: Team H | B78: Nomlanga | C78: Product 1 | D78: 2014-06-01 | E78: Florida | F78: 8.7 | G78: 4.6 | H78: 0.2 | I78: 38 | J78: 8.260869565 | K78: 1292 | L78: 280.8695652 | M78: 368 | N78: 26 | O78: 31 | P78: 38 | Q78: 11 | R78: 106 | S78: 0.5377358491
A79: Team H | B79: Kirestin | C79: Product 2 | D79: 2014-06-01 | E79: Hawaii | F79: 9.5 | G79: 5.2 | H79: 0.6 | I79: 36 | J79: 6.923076923 | K79: 1224 | L79: 235.3846154 | M79: 376 | N79: 25 | O79: 36 | P79: 33 | Q79: 11 | R79: 105 | S79: 0.580952381
A80: Team H | B80: Serena | C80: Product 1 | D80: 2014-06-01 | E80: Alabama | F80: 7.5 | G80: 3 | H80: 0.5 | I80: 40 | J80: 13.33333333 | K80: 1360 | L80: 453.3333333 | M80: 359 | N80: 25 | O80: 37 | P80: 34 | Q80: 10 | R80: 106 | S80: 0.5849056604
A81: Team H | B81: Hilary | C81: Product 2 | D81: 2014-06-01 | E81: California | F81: 7.4 | G81: 2.7 | H81: 0.7 | I81: 49 | J81: 18.14814815 | K81: 1666 | L81: 617.037037 | M81: 302 | N81: 28 | O81: 32 | P81: 34 | Q81: 15 | R81: 109 | S81: 0.5504587156
A82: Team I | B82: Gretchen | C82: Product 1 | D82: 2014-06-01 | E82: Colorado | F82: 6.6 | G82: 5.7 | H82: 0.3 | I82: 52 | J82: 9.122807018 | K82: 1768 | L82: 310.1754386 | M82: 323 | N82: 27 | O82: 38 | P82: 36 | Q82: 11 | R82: 112 | S82: 0.5803571429
A83: Team I | B83: Giselle | C83: Product 2 | D83: 2014-06-01 | E83: Connecticut | F83: 5.5 | G83: 4.4 | H83: 0.8 | I83: 56 | J83: 12.72727273 | K83: 1904 | L83: 432.7272727 | M83: 400 | N83: 30 | O83: 32 | P83: 38 | Q83: 15 | R83: 115 | S83: 0.5391304348
A84: Team I | B84: Galena | C84: Product 1 | D84: 2014-06-01 | E84: Florida | F84: 5.7 | G84: 4.4 | H84: 0.2 | I84: 62 | J84: 14.09090909 | K84: 2108 | L84: 479.0909091 | M84: 397 | N84: 29 | O84: 31 | P84: 32 | Q84: 10 | R84: 102 | S84: 0.5882352941
A85: Team I | B85: Calista | C85: Product 2 | D85: 2014-06-01 | E85: Hawaii | F85: 6 | G85: 4.5 | H85: 0.6 | I85: 65 | J85: 14.44444444 | K85: 2210 | L85: 491.1111111 | M85: 327 | N85: 27 | O85: 33 | P85: 37 | Q85: 13 | R85: 110 | S85: 0.5454545455
A86: Team I | B86: Juliet | C86: Product 1 | D86: 2014-06-01 | E86: Alabama | F86: 5.8 | G86: 4.1 | H86: 0.5 | I86: 79 | J86: 19.26829268 | K86: 2686 | L86: 655.1219512 | M86: 327 | N86: 20 | O86: 34 | P86: 32 | Q86: 10 | R86: 96 | S86: 0.5625
A87: Team I | B87: Karyn | C87: Product 2 | D87: 2014-06-01 | E87: California | F87: 7.8 | G87: 5.9 | H87: 0.7 | I87: 79 | J87: 13.38983051 | K87: 2686 | L87: 455.2542373 | M87: 317 | N87: 25 | O87: 32 | P87: 38 | Q87: 13 | R87: 108 | S87: 0.5277777778
A88: Team I | B88: Noelani | C88: Product 1 | D88: 2014-06-01 | E88: Colorado | F88: 8.9 | G88: 6.8 | H88: 0.3 | I88: 71 | J88: 10.44117647 | K88: 2414 | L88: 355 | M88: 365 | N88: 30 | O88: 35 | P88: 33 | Q88: 14 | R88: 112 | S88: 0.5803571429
A89: Team I | B89: Portia | C89: Product 2 | D89: 2014-06-01 | E89: Connecticut | F89: 9.1 | G89: 6.8 | H89: 0.8 | I89: 66 | J89: 9.705882353 | K89: 2244 | L89: 330 | M89: 396 | N89: 25 | O89: 39 | P89: 37 | Q89: 11 | R89: 112 | S89: 0.5714285714
A90: Team I | B90: Melodie | C90: Product 1 | D90: 2014-06-01 | E90: Florida | F90: 7.7 | G90: 5.2 | H90: 0.2 | I90: 68 | J90: 13.07692308 | K90: 2312 | L90: 444.6153846 | M90: 319 | N90: 27 | O90: 38 | P90: 40 | Q90: 13 | R90: 118 | S90: 0.5508474576
A91: Team I | B91: Yolanda | C91: Product 2 | D91: 2014-06-01 | E91: Hawaii | F91: 8.7 | G91: 6 | H91: 0.6 | I91: 61 | J91: 10.16666667 | K91: 2074 | L91: 345.6666667 | M91: 329 | N91: 24 | O91: 32 | P91: 33 | Q91: 14 | R91: 103 | S91: 0.5436893204
A92: Team I | B92: Serina | C92: Product 1 | D92: 2014-06-01 | E92: Alabama | F92: 8.5 | G92: 5.6 | H92: 0.5 | I92: 60 | J92: 10.71428571 | K92: 2040 | L92: 364.2857143 | M92: 333 | N92: 29 | O92: 34 | P92: 35 | Q92: 12 | R92: 110 | S92: 0.5727272727
A93: Team J | B93: Jena | C93: Product 2 | D93: 2014-06-01 | E93: California | F93: 9.3 | G93: 6.2 | H93: 0.7 | I93: 52 | J93: 8.387096774 | K93: 1768 | L93: 285.1612903 | M93: 386 | N93: 20 | O93: 39 | P93: 38 | Q93: 12 | R93: 109 | S93: 0.5412844037
A94: Team J | B94: Fleur | C94: Product 1 | D94: 2014-06-01 | E94: Colorado | F94: 8.8 | G94: 5.5 | H94: 0.3 | I94: 49 | J94: 8.909090909 | K94: 1666 | L94: 302.9090909 | M94: 329 | N94: 26 | O94: 36 | P94: 39 | Q94: 10 | R94: 111 | S94: 0.5585585586
A95: Team J | B95: Illiana | C95: Product 2 | D95: 2014-06-01 | E95: Connecticut | F95: 8.6 | G95: 5.1 | H95: 0.8 | I95: 42 | J95: 8.235294118 | K95: 1428 | L95: 280 | M95: 332 | N95: 22 | O95: 39 | P95: 32 | Q95: 11 | R95: 104 | S95: 0.5865384615
A96: Team J | B96: Jeremy | C96: Product 1 | D96: 2014-06-01 | E96: Florida | F96: 8.8 | G96: 5.1 | H96: 0.2 | I96: 30 | J96: 5.882352941 | K96: 1020 | L96: 200 | M96: 384 | N96: 21 | O96: 37 | P96: 39 | Q96: 11 | R96: 108 | S96: 0.537037037
A97: Team J | B97: Oscar | C97: Product 2 | D97: 2014-06-01 | E97: Hawaii | F97: 7.2 | G97: 3.3 | H97: 0.6 | I97: 32 | J97: 9.696969697 | K97: 1088 | L97: 329.6969697 | M97: 327 | N97: 21 | O97: 38 | P97: 36 | Q97: 12 | R97: 107 | S97: 0.5514018692
A98: Team J | B98: Luke | C98: Product 1 | D98: 2014-06-01 | E98: Alabama | F98: 7 | G98: 2.9 | H98: 0.5 | I98: 40 | J98: 13.79310345 | K98: 1360 | L98: 468.9655172 | M98: 396 | N98: 24 | O98: 39 | P98: 31 | Q98: 10 | R98: 104 | S98: 0.6057692308
A99: Team J | B99: Addison | C99: Product 2 | D99: 2014-06-01 | E99: California | F99: 7 | G99: 2.7 | H99: 0.7 | I99: 43 | J99: 15.92592593 | K99: 1462 | L99: 541.4814815 | M99: 350 | N99: 29 | O99: 30 | P99: 32 | Q99: 12 | R99: 103 | S99: 0.572815534
A100: Team J | B100: Alec | C100: Product 1 | D100: 2014-06-01 | E100: Colorado | F100: 6.8 | G100: 2.3 | H100: 0.3 | I100: 51 | J100: 22.17391304 | K100: 1734 | L100: 753.9130435 | M100: 300 | N100: 23 | O100: 39 | P100: 34 | Q100: 14 | R100: 110 | S100: 0.5636363636
A101: Team J | B101: Rafael | C101: Product 2 | D101: 2014-06-01 | E101: Connecticut | F101: 5.5 | G101: 0.8 | H101: 0.8 | I101: 50 | J101: 62.5 | K101: 1700 | L101: 2125 | M101: 316 | N101: 29 | O101: 35 | P101: 33 | Q101: 10 | R101: 107 | S101: 0.5981308411
A102: Team J | B102: Hoyt | C102: Product 1 | D102: 2014-06-01 | E102: Florida | F102: 5.6 | G102: 4.7 | H102: 0.2 | I102: 55 | J102: 11.70212766 | K102: 1870 | L102: 397.8723404 | M102: 384 | N102: 21 | O102: 37 | P102: 39 | Q102: 11 | R102: 108 | S102: 0.537037037
A103: Team J | B103: Abel | C103: Product 2 | D103: 2014-06-01 | E103: Hawaii | F103: 4.5 | G103: 3.4 | H103: 0.6 | I103: 62 | J103: 18.23529412 | K103: 2108 | L103: 620 | M103: 327 | N103: 21 | O103: 38 | P103: 36 | Q103: 12 | R103: 107 | S103: 0.5514018692

Sheet Summary
A1: Best Selling Product by Region
B2: Product 1 | C2: Product 2 | D2: Login Hours | E2: Total Talk Time | F2: Sales | G2: Sales Per Hour | H2: Revenue | I2: Revenue Per Hour | J2: Calls | K2: CSAT%
A3: Alabama | B3: =SUMIFS('Team Performance'!$I:$I,'Team Performance'!$E:$E,$A3,'Team Performance'!$C:$C,B$2) -> 951 | C3: =SUMIFS('Team Performance'!$I:$I,'Team Performance'!$E:$E,$A3,'Team Performance'!$C:$C,C$2) -> 0 | D3: =SUMIFS('Team Performance'!$F:$F,'Team Performance'!$E:$E,$A3) -> 131.7 | E3: =SUMIFS('Team Performance'!$G:$G,'Team Performance'!$E:$E,$A3) -> 91.6 | F3: =SUMIFS('Team Performance'!$I:$I,'Team Performance'!$E:$E,$A3) -> 951 | G3: =SUMIFS('Team Performance'!$J:$J,'Team Performance'!$E:$E,$A3) -> 202.6416261 | H3: =SUMIFS('Team Performance'!$K:$K,'Team Performance'!$E:$E,$A3) -> 32334 | I3: =SUMIFS('Team Performance'!$L:$L,'Team Performance'!$E:$E,$A3) -> 6889.815288 | J3: =SUMIFS('Team Performance'!$M:$M,'Team Performance'!$E:$E,$A3) -> 5921 | K3: =AVERAGEIF('Team Performance'!$E:$E,$A3,'Team Performance'!$S:$S) -> 0.5384868557
A4: California | B4: =SUMIFS('Team Performance'!$I:$I,'Team Performance'!$E:$E,$A4,'Team Performance'!$C:$C,B$2) -> 0 | C4: =SUMIFS('Team Performance'!$I:$I,'Team Performance'!$E:$E,$A4,'Team Performance'!$C:$C,C$2) -> 941 | D4: =SUMIFS('Team Performance'!$F:$F,'Team Performance'!$E:$E,$A4) -> 131.5 | E4: =SUMIFS('Team Performance'!$G:$G,'Team Performance'!$E:$E,$A4) -> 88 | F4: =SUMIFS('Team Performance'!$I:$I,'Team Performance'!$E:$E,$A4) -> 941 | G4: =SUMIFS('Team Performance'!$J:$J,'Team Performance'!$E:$E,$A4) -> 217.2351992 | H4: =SUMIFS('Team Performance'!$K:$K,'Team Performance'!$E:$E,$A4) -> 31994 | I4: =SUMIFS('Team Performance'!$L:$L,'Team Performance'!$E:$E,$A4) -> 7385.996774 | J4: =SUMIFS('Team Performance'!$M:$M,'Team Performance'!$E:$E,$A4) -> 5901 | K4: =AVERAGEIF('Team Performance'!$E:$E,$A4,'Team Performance'!$S:$S) -> 0.5594269394
A5: Colorado | B5: =SUMIFS('Team Performance'!$I:$I,'Team Performance'!$E:$E,$A5,'Team Performance'!$C:$C,B$2) -> 929 | C5: =SUMIFS('Team Performance'!$I:$I,'Team Performance'!$E:$E,$A5,'Team Performance'!$C:$C,C$2) -> 0 | D5: =SUMIFS('Team Performance'!$F:$F,'Team Performance'!$E:$E,$A5) -> 131.4 | E5: =SUMIFS('Team Performance'!$G:$G,'Team Performance'!$E:$E,$A5) -> 88.5 | F5: =SUMIFS('Team Performance'!$I:$I,'Team Performance'!$E:$E,$A5) -> 929 | G5: =SUMIFS('Team Performance'!$J:$J,'Team Performance'!$E:$E,$A5) -> 224.4732197 | H5: =SUMIFS('Team Performance'!$K:$K,'Team Performance'!$E:$E,$A5) -> 31586 | I5: =SUMIFS('Team Performance'!$L:$L,'Team Performance'!$E:$E,$A5) -> 7632.089471 | J5: =SUMIFS('Team Performance'!$M:$M,'Team Performance'!$E:$E,$A5) -> 5776 | K5: =AVERAGEIF('Team Performance'!$E:$E,$A5,'Team Performance'!$S:$S) -> 0.57229363
A6: Connecticut | B6: =SUMIFS('Team Performance'!$I:$I,'Team Performance'!$E:$E,$A6,'Team Performance'!$C:$C,B$2) -> 0 | C6: =SUMIFS('Team Performance'!$I:$I,'Team Performance'!$E:$E,$A6,'Team Performance'!$C:$C,C$2) -> 954 | D6: =SUMIFS('Team Performance'!$F:$F,'Team Performance'!$E:$E,$A6) -> 130.7 | E6: =SUMIFS('Team Performance'!$G:$G,'Team Performance'!$E:$E,$A6) -> 84.4 | F6: =SUMIFS('Team Performance'!$I:$I,'Team Performance'!$E:$E,$A6) -> 954 | G6: =SUMIFS('Team Performance'!$J:$J,'Team Performance'!$E:$E,$A6) -> 257.0507823 | H6: =SUMIFS('Team Performance'!$K:$K,'Team Performance'!$E:$E,$A6) -> 32436 | I6: =SUMIFS('Team Performance'!$L:$L,'Team Performance'!$E:$E,$A6) -> 8739.726598 | J6: =SUMIFS('Team Performance'!$M:$M,'Team Performance'!$E:$E,$A6) -> 6228 | K6: =AVERAGEIF('Team Performance'!$E:$E,$A6,'Team Performance'!$S:$S) -> 0.5447459122
A7: Florida | B7: =SUMIFS('Team Performance'!$I:$I,'Team Performance'!$E:$E,$A7,'Team Performance'!$C:$C,B$2) -> 950 | C7: =SUMIFS('Team Performance'!$I:$I,'Team Performance'!$E:$E,$A7,'Team Performance'!$C:$C,C$2) -> 0 | D7: =SUMIFS('Team Performance'!$F:$F,'Team Performance'!$E:$E,$A7) -> 130.1 | E7: =SUMIFS('Team Performance'!$G:$G,'Team Performance'!$E:$E,$A7) -> 91.6 | F7: =SUMIFS('Team Performance'!$I:$I,'Team Performance'!$E:$E,$A7) -> 950 | G7: =SUMIFS('Team Performance'!$J:$J,'Team Performance'!$E:$E,$A7) -> 187.0746835 | H7: =SUMIFS('Team Performance'!$K:$K,'Team Performance'!$E:$E,$A7) -> 32300 | I7: =SUMIFS('Team Performance'!$L:$L,'Team Performance'!$E:$E,$A7) -> 6360.53924 | J7: =SUMIFS('Team Performance'!$M:$M,'Team Performance'!$E:$E,$A7) -> 6155 | K7: =AVERAGEIF('Team Performance'!$E:$E,$A7,'Team Performance'!$S:$S) -> 0.5615696187
A8: Hawaii | B8: =SUMIFS('Team Performance'!$I:$I,'Team Performance'!$E:$E,$A8,'Team Performance'!$C:$C,B$2) -> 0 | C8: =SUMIFS('Team Performance'!$I:$I,'Team Performance'!$E:$E,$A8,'Team Performance'!$C:$C,C$2) -> 950 | D8: =SUMIFS('Team Performance'!$F:$F,'Team Performance'!$E:$E,$A8) -> 129.4 | E8: =SUMIFS('Team Performance'!$G:$G,'Team Performance'!$E:$E,$A8) -> 87.5 | F8: =SUMIFS('Team Performance'!$I:$I,'Team Performance'!$E:$E,$A8) -> 950 | G8: =SUMIFS('Team Performance'!$J:$J,'Team Performance'!$E:$E,$A8) -> 204.248327 | H8: =SUMIFS('Team Performance'!$K:$K,'Team Performance'!$E:$E,$A8) -> 32300 | I8: =SUMIFS('Team Performance'!$L:$L,'Team Performance'!$E:$E,$A8) -> 6944.443118 | J8: =SUMIFS('Team Performance'!$M:$M,'Team Performance'!$E:$E,$A8) -> 5876 | K8: =AVERAGEIF('Team Performance'!$E:$E,$A8,'Team Performance'!$S:$S) -> 0.5500305323
A11: Best Selling Product by Team
B12: Product 1 | C12: Product 2 | D12: Login Hours | E12: Total Talk Time | F12: Sales | G12: Sales Per Hour | H12: Revenue | I12: Revenue Per Hour | J12: Calls | K12: CSAT%
A13: Team A | B13: =SUMIFS('Team Performance'!$I:$I,'Team Performance'!$A:$A,$A13,'Team Performance'!$C:$C,B$12) -> 271 | C13: =SUMIFS('Team Performance'!$I:$I,'Team Performance'!$A:$A,$A13,'Team Performance'!$C:$C,C$12) -> 307 | D13: =SUMIFS('Team Performance'!$F:$F,'Team Performance'!$A:$A,$A13) -> 85.9 | E13: =SUMIFS('Team Performance'!$G:$G,'Team Performance'!$A:$A,$A13) -> 75.9 | F13: =SUMIFS('Team Performance'!$I:$I,'Team Performance'!$A:$A,$A13) -> 578 | G13: =SUMIFS('Team Performance'!$J:$J,'Team Performance'!$A:$A,$A13) -> 77.97656546 | H13: =SUMIFS('Team Performance'!$K:$K,'Team Performance'!$A:$A,$A13) -> 19652 | I13: =SUMIFS('Team Performance'!$L:$L,'Team Performance'!$A:$A,$A13) -> 2651.203226 | J13: =SUMIFS('Team Performance'!$M:$M,'Team Performance'!$A:$A,$A13) -> 3461 | K13: =AVERAGEIF('Team Performance'!$A:$A,$A13,'Team Performance'!$S:$S) -> 0.569660846
A14: Team B | B14: =SUMIFS('Team Performance'!$I:$I,'Team Performance'!$A:$A,$A14,'Team Performance'!$C:$C,B$12) -> 284 | C14: =SUMIFS('Team Performance'!$I:$I,'Team Performance'!$A:$A,$A14,'Team Performance'!$C:$C,C$12) -> 258 | D14: =SUMIFS('Team Performance'!$F:$F,'Team Performance'!$A:$A,$A14) -> 71 | E14: =SUMIFS('Team Performance'!$G:$G,'Team Performance'!$A:$A,$A14) -> 53.8 | F14: =SUMIFS('Team Performance'!$I:$I,'Team Performance'!$A:$A,$A14) -> 542 | G14: =SUMIFS('Team Performance'!$J:$J,'Team Performance'!$A:$A,$A14) -> 129.8300764 | H14: =SUMIFS('Team Performance'!$K:$K,'Team Performance'!$A:$A,$A14) -> 18428 | I14: =SUMIFS('Team Performance'!$L:$L,'Team Performance'!$A:$A,$A14) -> 4414.222597 | J14: =SUMIFS('Team Performance'!$M:$M,'Team Performance'!$A:$A,$A14) -> 3443 | K14: =AVERAGEIF('Team Performance'!$A:$A,$A14,'Team Performance'!$S:$S) -> 0.5644190113
A15: Team C | B15: =SUMIFS('Team Performance'!$I:$I,'Team Performance'!$A:$A,$A15,'Team Performance'!$C:$C,B$12) -> 296 | C15: =SUMIFS('Team Performance'!$I:$I,'Team Performance'!$A:$A,$A15,'Team Performance'!$C:$C,C$12) -> 309 | D15: =SUMIFS('Team Performance'!$F:$F,'Team Performance'!$A:$A,$A15) -> 81.2 | E15: =SUMIFS('Team Performance'!$G:$G,'Team Performance'!$A:$A,$A15) -> 63.2 | F15: =SUMIFS('Team Performance'!$I:$I,'Team Performance'!$A:$A,$A15) -> 605 | G15: =SUMIFS('Team Performance'!$J:$J,'Team Performance'!$A:$A,$A15) -> 105.408273 | H15: =SUMIFS('Team Performance'!$K:$K,'Team Performance'!$A:$A,$A15) -> 20570 | I15: =SUMIFS('Team Performance'!$L:$L,'Team Performance'!$A:$A,$A15) -> 3583.881282 | J15: =SUMIFS('Team Performance'!$M:$M,'Team Performance'!$A:$A,$A15) -> 3584 | K15: =AVERAGEIF('Team Performance'!$A:$A,$A15,'Team Performance'!$S:$S) -> 0.5562087378
A16: Team D | B16: =SUMIFS('Team Performance'!$I:$I,'Team Performance'!$A:$A,$A16,'Team Performance'!$C:$C,B$12) -> 247 | C16: =SUMIFS('Team Performance'!$I:$I,'Team Performance'!$A:$A,$A16,'Team Performance'!$C:$C,C$12) -> 235 | D16: =SUMIFS('Team Performance'!$F:$F,'Team Performance'!$A:$A,$A16) -> 74.8 | E16: =SUMIFS('Team Performance'!$G:$G,'Team Performance'!$A:$A,$A16) -> 36.8 | F16: =SUMIFS('Team Performance'!$I:$I,'Team Performance'!$A:$A,$A16) -> 482 | G16: =SUMIFS('Team Performance'!$J:$J,'Team Performance'!$A:$A,$A16) -> 150.6026539 | H16: =SUMIFS('Team Performance'!$K:$K,'Team Performance'!$A:$A,$A16) -> 16388 | I16: =SUMIFS('Team Performance'!$L:$L,'Team Performance'!$A:$A,$A16) -> 5120.490232 | J16: =SUMIFS('Team Performance'!$M:$M,'Team Performance'!$A:$A,$A16) -> 3479 | K16: =AVERAGEIF('Team Performance'!$A:$A,$A16,'Team Performance'!$S:$S) -> 0.5253668274
A17: Team E | B17: =SUMIFS('Team Performance'!$I:$I,'Team Performance'!$A:$A,$A17,'Team Performance'!$C:$C,B$12) -> 330 | C17: =SUMIFS('Team Performance'!$I:$I,'Team Performance'!$A:$A,$A17,'Team Performance'!$C:$C,C$12) -> 330 | D17: =SUMIFS('Team Performance'!$F:$F,'Team Performance'!$A:$A,$A17) -> 75.2 | E17: =SUMIFS('Team Performance'!$G:$G,'Team Performance'!$A:$A,$A17) -> 57.2 | F17: =SUMIFS('Team Performance'!$I:$I,'Team Performance'!$A:$A,$A17) -> 660 | G17: =SUMIFS('Team Performance'!$J:$J,'Team Performance'!$A:$A,$A17) -> 134.7354549 | H17: =SUMIFS('Team Performance'!$K:$K,'Team Performance'!$A:$A,$A17) -> 22440 | I17: =SUMIFS('Team Performance'!$L:$L,'Team Performance'!$A:$A,$A17) -> 4581.005465 | J17: =SUMIFS('Team Performance'!$M:$M,'Team Performance'!$A:$A,$A17) -> 3606 | K17: =AVERAGEIF('Team Performance'!$A:$A,$A17,'Team Performance'!$S:$S) -> 0.52047161
A18: Team F | B18: =SUMIFS('Team Performance'!$I:$I,'Team Performance'!$A:$A,$A18,'Team Performance'!$C:$C,B$12) -> 232 | C18: =SUMIFS('Team Performance'!$I:$I,'Team Performance'!$A:$A,$A18,'Team Performance'!$C:$C,C$12) -> 235 | D18: =SUMIFS('Team Performance'!$F:$F,'Team Performance'!$A:$A,$A18) -> 82.5 | E18: =SUMIFS('Team Performance'!$G:$G,'Team Performance'!$A:$A,$A18) -> 44.5 | F18: =SUMIFS('Team Performance'!$I:$I,'Team Performance'!$A:$A,$A18) -> 467 | G18: =SUMIFS('Team Performance'!$J:$J,'Team Performance'!$A:$A,$A18) -> 119.1627651 | H18: =SUMIFS('Team Performance'!$K:$K,'Team Performance'!$A:$A,$A18) -> 15878 | I18: =SUMIFS('Team Performance'!$L:$L,'Team Performance'!$A:$A,$A18) -> 4051.534012 | J18: =SUMIFS('Team Performance'!$M:$M,'Team Performance'!$A:$A,$A18) -> 3503 | K18: =AVERAGEIF('Team Performance'!$A:$A,$A18,'Team Performance'!$S:$S) -> 0.5627267207
A19: Team G | B19: =SUMIFS('Team Performance'!$I:$I,'Team Performance'!$A:$A,$A19,'Team Performance'!$C:$C,B$12) -> 329 | C19: =SUMIFS('Team Performance'!$I:$I,'Team Performance'!$A:$A,$A19,'Team Performance'!$C:$C,C$12) -> 337 | D19: =SUMIFS('Team Performance'!$F:$F,'Team Performance'!$A:$A,$A19) -> 69.7 | E19: =SUMIFS('Team Performance'!$G:$G,'Team Performance'!$A:$A,$A19) -> 51.7 | F19: =SUMIFS('Team Performance'!$I:$I,'Team Performance'!$A:$A,$A19) -> 666 | G19: =SUMIFS('Team Performance'!$J:$J,'Team Performance'!$A:$A,$A19) -> 150.7947978 | H19: =SUMIFS('Team Performance'!$K:$K,'Team Performance'!$A:$A,$A19) -> 22644 | I19: =SUMIFS('Team Performance'!$L:$L,'Team Performance'!$A:$A,$A19) -> 5127.023126 | J19: =SUMIFS('Team Performance'!$M:$M,'Team Performance'!$A:$A,$A19) -> 3592 | K19: =AVERAGEIF('Team Performance'!$A:$A,$A19,'Team Performance'!$S:$S) -> 0.5484864736
A20: Team H | B20: =SUMIFS('Team Performance'!$I:$I,'Team Performance'!$A:$A,$A20,'Team Performance'!$C:$C,B$12) -> 224 | C20: =SUMIFS('Team Performance'!$I:$I,'Team Performance'!$A:$A,$A20,'Team Performance'!$C:$C,C$12) -> 226 | D20: =SUMIFS('Team Performance'!$F:$F,'Team Performance'!$A:$A,$A20) -> 85.1 | E20: =SUMIFS('Team Performance'!$G:$G,'Team Performance'!$A:$A,$A20) -> 47.1 | F20: =SUMIFS('Team Performance'!$I:$I,'Team Performance'!$A:$A,$A20) -> 450 | G20: =SUMIFS('Team Performance'!$J:$J,'Team Performance'!$A:$A,$A20) -> 101.6235921 | H20: =SUMIFS('Team Performance'!$K:$K,'Team Performance'!$A:$A,$A20) -> 15300 | I20: =SUMIFS('Team Performance'!$L:$L,'Team Performance'!$A:$A,$A20) -> 3455.20213 | J20: =SUMIFS('Team Performance'!$M:$M,'Team Performance'!$A:$A,$A20) -> 3525 | K20: =AVERAGEIF('Team Performance'!$A:$A,$A20,'Team Performance'!$S:$S) -> 0.5711890867
A21: Team I | B21: =SUMIFS('Team Performance'!$I:$I,'Team Performance'!$A:$A,$A21,'Team Performance'!$C:$C,B$12) -> 392 | C21: =SUMIFS('Team Performance'!$I:$I,'Team Performance'!$A:$A,$A21,'Team Performance'!$C:$C,C$12) -> 327 | D21: =SUMIFS('Team Performance'!$F:$F,'Team Performance'!$A:$A,$A21) -> 80.3 | E21: =SUMIFS('Team Performance'!$G:$G,'Team Performance'!$A:$A,$A21) -> 59.4 | F21: =SUMIFS('Team Performance'!$I:$I,'Team Performance'!$A:$A,$A21) -> 719 | G21: =SUMIFS('Team Performance'!$J:$J,'Team Performance'!$A:$A,$A21) -> 137.1484908 | H21: =SUMIFS('Team Performance'!$K:$K,'Team Performance'!$A:$A,$A21) -> 24446 | I21: =SUMIFS('Team Performance'!$L:$L,'Team Performance'!$A:$A,$A21) -> 4663.048686 | J21: =SUMIFS('Team Performance'!$M:$M,'Team Performance'!$A:$A,$A21) -> 3833 | K21: =AVERAGEIF('Team Performance'!$A:$A,$A21,'Team Performance'!$S:$S) -> 0.5602277236
A22: Team J | B22: =SUMIFS('Team Performance'!$I:$I,'Team Performance'!$A:$A,$A22,'Team Performance'!$C:$C,B$12) -> 225 | C22: =SUMIFS('Team Performance'!$I:$I,'Team Performance'!$A:$A,$A22,'Team Performance'!$C:$C,C$12) -> 281 | D22: =SUMIFS('Team Performance'!$F:$F,'Team Performance'!$A:$A,$A22) -> 79.1 | E22: =SUMIFS('Team Performance'!$G:$G,'Team Performance'!$A:$A,$A22) -> 42 | F22: =SUMIFS('Team Performance'!$I:$I,'Team Performance'!$A:$A,$A22) -> 506 | G22: =SUMIFS('Team Performance'!$J:$J,'Team Performance'!$A:$A,$A22) -> 185.4411686 | H22: =SUMIFS('Team Performance'!$K:$K,'Team Performance'!$A:$A,$A22) -> 17204 | I22: =SUMIFS('Team Performance'!$L:$L,'Team Performance'!$A:$A,$A22) -> 6304.999734 | J22: =SUMIFS('Team Performance'!$M:$M,'Team Performance'!$A:$A,$A22) -> 3831 | K22: =AVERAGEIF('Team Performance'!$A:$A,$A22,'Team Performance'!$S:$S) -> 0.5639646551
A25: % Productive Time - Region
A26: Alabama | B26: =E3/D3 -> 0.6955201215
A27: California | B27: =E4/D4 -> 0.6692015209
A28: Colorado | B28: 0.6735159817
A29: Connecticut | B29: 0.6457536343
A30: Florida | B30: 0.7040737894
A31: Hawaii | B31: 0.6761978362
A34: % Productive Time - Team
A35: Team A | B35: =E13/D13 -> 0.8835855646 | C35: =1-B35 -> 0.1164144354 | D35: =SUM(B35:C35) -> 1
A36: Team B | B36: =E14/D14 -> 0.7577464789 | C36: =1-B36 -> 0.2422535211 | D36: =SUM(B36:C36) -> 1
A37: Team C | B37: 0.7783251232 | C37: 0.2216748768 | D37: 1
A38: Team D | B38: 0.4919786096 | C38: 0.5080213904 | D38: 1
A39: Team E | B39: 0.7606382979 | C39: 0.2393617021 | D39: 1
A40: Team F | B40: 0.5393939394 | C40: 0.4606060606 | D40: 1
A41: Team G | B41: 0.7417503587 | C41: 0.2582496413 | D41: 1
A42: Team H | B42: 0.55346651 | C42: 0.44653349 | D42: 1
A43: Team I | B43: 0.7397260274 | C43: 0.2602739726 | D43: 1
A44: Team J | B44: 0.5309734513 | C44: 0.4690265487 | D44: 1
A47: Top 10 Team Members

Sheet MD
F6: Team | G6: Product | H6: Region
F7: Team A | G7: Product 1 | H7: Alabama
F8: Team B | G8: Product 2 | H8: California
F9: Team C | H9: Colorado
F10: Team D | H10: Connecticut
F11: Team E | H11: Florida
F12: Team F | H12: Hawaii
F13: Team G
F14: Team H
F15: Team I
F16: Team J

Sheet Top 10 Team
A1: ='Team Performance'!B1 -> Team Members | B1: ='Team Performance'!A1 -> Team | C1: ='Team Performance'!E1 -> Region | D1: ='Team Performance'!S1 -> CSAT% (Customer Satisfaction)
A2: ='Team Performance'!B4 -> Constance | B2: ='Team Performance'!A4 -> Team A | C2: ='Team Performance'!E4 -> Colorado | D2: ='Team Performance'!S4 -> 0.6371681416
A3: ='Team Performance'!B50 -> Miriam | B3: ='Team Performance'!A50 -> Team E | C3: ='Team Performance'!E50 -> Alabama | D3: ='Team Performance'!S50 -> 0.6306306306
A4: ='Team Performance'!B57 -> Riley | B4: ='Team Performance'!A57 -> Team F | C4: ='Team Performance'!E57 -> California | D4: ='Team Performance'!S57 -> 0.623853211
A5: ='Team Performance'!B98 -> Luke | B5: ='Team Performance'!A98 -> Team J | C5: ='Team Performance'!E98 -> Alabama | D5: ='Team Performance'!S98 -> 0.6057692308
A6: ='Team Performance'!B29 -> Audra | B6: ='Team Performance'!A29 -> Team C | C6: ='Team Performance'!E29 -> Connecticut | D6: ='Team Performance'!S29 -> 0.5982142857
A7: ='Team Performance'!B73 -> Xerxes | B7: ='Team Performance'!A73 -> Team H | C7: ='Team Performance'!E73 -> Hawaii | D7: ='Team Performance'!S73 -> 0.5982142857
A8: ='Team Performance'!B101 -> Rafael | B8: ='Team Performance'!A101 -> Team J | C8: ='Team Performance'!E101 -> Connecticut | D8: ='Team Performance'!S101 -> 0.5981308411
A9: ='Team Performance'!B39 -> Madeson | B9: ='Team Performance'!A39 -> Team D | C9: ='Team Performance'!E39 -> California | D9: ='Team Performance'!S39 -> 0.5945945946
A10: ='Team Performance'!B76 -> Phyllis | B10: ='Team Performance'!A76 -> Team H | C10: ='Team Performance'!E76 -> Colorado | D10: ='Team Performance'!S76 -> 0.5940594059
A11: ='Team Performance'!B12 -> Rowan | B11: ='Team Performance'!A12 -> Team B | C11: ='Team Performance'!E12 -> Florida | D11: ='Team Performance'!S12 -> 0.5918367347
A12: ='Team Performance'!B84 -> Galena | B12: ='Team Performance'!A84 -> Team I | C12: ='Team Performance'!E84 -> Florida | D12: ='Team Performance'!S84 -> 0.5882352941
A13: ='Team Performance'!B95 -> Illiana | B13: ='Team Performance'!A95 -> Team J | C13: ='Team Performance'!E95 -> Connecticut | D13: ='Team Performance'!S95 -> 0.5865384615
A14: ='Team Performance'!B10 -> Darryl | B14: ='Team Performance'!A10 -> Team A | C14: ='Team Performance'!E10 -> Colorado | D14: ='Team Performance'!S10 -> 0.5862068966
A15: ='Team Performance'!B80 -> Serena | B15: ='Team Performance'!A80 -> Team H | C15: ='Team Performance'!E80 -> Alabama | D15: ='Team Performance'!S80 -> 0.5849056604
A16: ='Team Performance'!B43 -> Heather | B16: ='Team Performance'!A43 -> Team E | C16: ='Team Performance'!E43 -> Hawaii | D16: ='Team Performance'!S43 -> 0.5841584158
A17: ='Team Performance'!B27 -> Maris | B17: ='Team Performance'!A27 -> Team C | C17: ='Team Performance'!E27 -> California | D17: ='Team Performance'!S27 -> 0.5840707965
A18: ='Team Performance'!B21 -> Inez | B18: ='Team Performance'!A21 -> Team B | C18: ='Team Performance'!E21 -> California | D18: ='Team Performance'!S21 -> 0.5833333333
A19: ='Team Performance'!B75 -> Zenia | B19: ='Team Performance'!A75 -> Team H | C19: ='Team Performance'!E75 -> California | D19: ='Team Performance'!S75 -> 0.5818181818
A20: ='Team Performance'!B16 -> Iona | B20: ='Team Performance'!A16 -> Team B | C20: ='Team Performance'!E16 -> Colorado | D20: ='Team Performance'!S16 -> 0.580952381
A21: ='Team Performance'!B58 -> Cleo | B21: ='Team Performance'!A58 -> Team F | C21: ='Team Performance'!E58 -> Colorado | D21: ='Team Performance'!S58 -> 0.580952381
A22: ='Team Performance'!B79 -> Kirestin | B22: ='Team Performance'!A79 -> Team H | C22: ='Team Performance'!E79 -> Hawaii | D22: ='Team Performance'!S79 -> 0.580952381
A23: ='Team Performance'!B18 -> Brynne | B23: ='Team Performance'!A18 -> Team B | C23: ='Team Performance'!E18 -> Florida | D23: ='Team Performance'!S18 -> 0.5803571429
A24: ='Team Performance'!B82 -> Gretchen | B24: ='Team Performance'!A82 -> Team I | C24: ='Team Performance'!E82 -> Colorado | D24: ='Team Performance'!S82 -> 0.5803571429
A25: ='Team Performance'!B88 -> Noelani | B25: ='Team Performance'!A88 -> Team I | C25: ='Team Performance'!E88 -> Colorado | D25: ='Team Performance'!S88 -> 0.5803571429
A26: ='Team Performance'!B52 -> Ivory | B26: ='Team Performance'!A52 -> Team F | C26: ='Team Performance'!E52 -> Colorado | D26: ='Team Performance'!S52 -> 0.5785123967
A27: ='Team Performance'!B7 -> Tashya | B27: ='Team Performance'!A7 -> Team A | C27: ='Team Performance'!E7 -> Hawaii | D27: ='Team Performance'!S7 -> 0.5769230769
A28: ='Team Performance'!B35 -> Hermione | B28: ='Team Performance'!A35 -> Team D | C28: ='Team Performance'!E35 -> Connecticut | D28: ='Team Performance'!S35 -> 0.5769230769
A29: ='Team Performance'!B2 -> Sydnee | B29: ='Team Performance'!A2 -> Team A | C29: ='Team Performance'!E2 -> Alabama | D29: ='Team Performance'!S2 -> 0.5765765766
A30: ='Team Performance'!B30 -> Rosalyn | B30: ='Team Performance'!A30 -> Team C | C30: ='Team Performance'!E30 -> Florida | D30: ='Team Performance'!S30 -> 0.5765765766
A31: ='Team Performance'!B72 -> Frances | B31: ='Team Performance'!A72 -> Team H | C31: ='Team Performance'!E72 -> Florida | D31: ='Team Performance'!S72 -> 0.5765765766
A32: ='Team Performance'!B67 -> Medge | B32: ='Team Performance'!A67 -> Team G | C32: ='Team Performance'!E67 -> Hawaii | D32: ='Team Performance'!S67 -> 0.5757575758
A33: ='Team Performance'!B5 -> Nola | B33: ='Team Performance'!A5 -> Team A | C33: ='Team Performance'!E5 -> Connecticut | D33: ='Team Performance'!S5 -> 0.5754716981
A34: ='Team Performance'!B8 -> Flavia | B34: ='Team Performance'!A8 -> Team A | C34: ='Team Performance'!E8 -> Alabama | D34: ='Team Performance'!S8 -> 0.5754716981
A35: ='Team Performance'!B20 -> Gay | B35: ='Team Performance'!A20 -> Team B | C35: ='Team Performance'!E20 -> Alabama | D35: ='Team Performance'!S20 -> 0.5754716981
A36: ='Team Performance'!B54 -> Dai | B36: ='Team Performance'!A54 -> Team F | C36: ='Team Performance'!E54 -> Florida | D36: ='Team Performance'!S54 -> 0.5754716981
A37: ='Team Performance'!B70 -> Kirby | B37: ='Team Performance'!A70 -> Team G | C37: ='Team Performance'!E70 -> Colorado | D37: ='Team Performance'!S70 -> 0.5740740741
A38: ='Team Performance'!B99 -> Addison | B38: ='Team Performance'!A99 -> Team J | C38: ='Team Performance'!E99 -> California | D38: ='Team Performance'!S99 -> 0.572815534
A39: ='Team Performance'!B92 -> Serina | B39: ='Team Performance'!A92 -> Team I | C39: ='Team Performance'!E92 -> Alabama | D39: ='Team Performance'!S92 -> 0.5727272727
A40: ='Team Performance'!B6 -> Libby | B40: ='Team Performance'!A6 -> Team A | C40: ='Team Performance'!E6 -> Florida | D40: ='Team Performance'!S6 -> 0.5714285714
A41: ='Team Performance'!B89 -> Portia | B41: ='Team Performance'!A89 -> Team I | C41: ='Team Performance'!E89 -> Connecticut | D41: ='Team Performance'!S89 -> 0.5714285714
A42: ='Team Performance'!B60 -> Britanney | B42: ='Team Performance'!A60 -> Team F | C42: ='Team Performance'!E60 -> Florida | D42: ='Team Performance'!S60 -> 0.57
A43: ='Team Performance'!B48 -> Madeline | B43: ='Team Performance'!A48 -> Team E | C43: ='Team Performance'!E48 -> Florida | D43: ='Team Performance'!S48 -> 0.5691056911
A44: ='Team Performance'!B34 -> Ariel | B44: ='Team Performance'!A34 -> Team D | C44: ='Team Performance'!E34 -> Colorado | D44: ='Team Performance'!S34 -> 0.5689655172
A45: ='Team Performance'!B53 -> Stacy | B45: ='Team Performance'!A53 -> Team F | C45: ='Team Performance'!E53 -> Connecticut | D45: ='Team Performance'!S53 -> 0.5660377358
A46: ='Team Performance'!B42 -> Lacy | B46: ='Team Performance'!A42 -> Team E | C46: ='Team Performance'!E42 -> Florida | D46: ='Team Performance'!S42 -> 0.5643564356
A47: ='Team Performance'!B100 -> Alec | B47: ='Team Performance'!A100 -> Team J | C47: ='Team Performance'!E100 -> Colorado | D47: ='Team Performance'!S100 -> 0.5636363636
A48: ='Team Performance'!B45 -> Mercedes | B48: ='Team Performance'!A45 -> Team E | C48: ='Team Performance'!E45 -> California | D48: ='Team Performance'!S45 -> 0.5631067961
A49: ='Team Performance'!B86 -> Juliet | B49: ='Team Performance'!A86 -> Team I | C49: ='Team Performance'!E86 -> Alabama | D49: ='Team Performance'!S86 -> 0.5625
A50: ='Team Performance'!B74 -> Carolyn | B50: ='Team Performance'!A74 -> Team H | C50: ='Team Performance'!E74 -> Alabama | D50: ='Team Performance'!S74 -> 0.56
A51: ='Team Performance'!B31 -> April | B51: ='Team Performance'!A31 -> Team C | C51: ='Team Performance'!E31 -> Hawaii | D51: ='Team Performance'!S31 -> 0.5588235294
A52: ='Team Performance'!B64 -> Rhoda | B52: ='Team Performance'!A64 -> Team G | C52: ='Team Performance'!E64 -> Colorado | D52: ='Team Performance'!S64 -> 0.5588235294
A53: ='Team Performance'!B94 -> Fleur | B53: ='Team Performance'!A94 -> Team J | C53: ='Team Performance'!E94 -> Colorado | D53: ='Team Performance'!S94 -> 0.5585585586
A54: ='Team Performance'!B17 -> Keelie | B54: ='Team Performance'!A17 -> Team B | C54: ='Team Performance'!E17 -> Connecticut | D54: ='Team Performance'!S17 -> 0.5575221239
A55: ='Team Performance'!B69 -> Regina | B55: ='Team Performance'!A69 -> Team G | C55: ='Team Performance'!E69 -> California | D55: ='Team Performance'!S69 -> 0.5555555556
A56: ='Team Performance'!B38 -> Lois | B56: ='Team Performance'!A38 -> Team D | C56: ='Team Performance'!E38 -> Alabama | D56: ='Team Performance'!S38 -> 0.5545454545
A57: ='Team Performance'!B40 -> Ariana | B57: ='Team Performance'!A40 -> Team D | C57: ='Team Performance'!E40 -> Colorado | D57: ='Team Performance'!S40 -> 0.5545454545
A58: ='Team Performance'!B22 -> Illana | B58: ='Team Performance'!A22 -> Team C | C58: ='Team Performance'!E22 -> Colorado | D58: ='Team Performance'!S22 -> 0.5544554455
A59: ='Team Performance'!B24 -> Olympia | B59: ='Team Performance'!A24 -> Team C | C59: ='Team Performance'!E24 -> Florida | D59: ='Team Performance'!S24 -> 0.5544554455
A60: ='Team Performance'!B14 -> Xantha | B60: ='Team Performance'!A14 -> Team B | C60: ='Team Performance'!E14 -> Alabama | D60: ='Team Performance'!S14 -> 0.5514018692
A61: ='Team Performance'!B97 -> Oscar | B61: ='Team Performance'!A97 -> Team J | C61: ='Team Performance'!E97 -> Hawaii | D61: ='Team Performance'!S97 -> 0.5514018692
A62: ='Team Performance'!B103 -> Abel | B62: ='Team Performance'!A103 -> Team J | C62: ='Team Performance'!E103 -> Hawaii | D62: ='Team Performance'!S103 -> 0.5514018692
A63: ='Team Performance'!B90 -> Melodie | B63: ='Team Performance'!A90 -> Team I | C63: ='Team Performance'!E90 -> Florida | D63: ='Team Performance'!S90 -> 0.5508474576
A64: ='Team Performance'!B81 -> Hilary | B64: ='Team Performance'!A81 -> Team H | C64: ='Team Performance'!E81 -> California | D64: ='Team Performance'!S81 -> 0.5504587156
A65: ='Team Performance'!B26 -> Shaine | B65: ='Team Performance'!A26 -> Team C | C65: ='Team Performance'!E26 -> Alabama | D65: ='Team Performance'!S26 -> 0.55
A66: ='Team Performance'!B63 -> Pamela | B66: ='Team Performance'!A63 -> Team G | C66: ='Team Performance'!E63 -> California | D66: ='Team Performance'!S63 -> 0.5486725664
A67: ='Team Performance'!B13 -> Quyn | B67: ='Team Performance'!A13 -> Team B | C67: ='Team Performance'!E13 -> Hawaii | D67: ='Team Performance'!S13 -> 0.5480769231
A68: ='Team Performance'!B77 -> Ashely | B68: ='Team Performance'!A77 -> Team H | C68: ='Team Performance'!E77 -> Connecticut | D68: ='Team Performance'!S77 -> 0.5471698113
A69: ='Team Performance'!B9 -> Guinevere | B69: ='Team Performance'!A9 -> Team A | C69: ='Team Performance'!E9 -> California | D69: ='Team Performance'!S9 -> 0.5463917526
A70: ='Team Performance'!B15 -> Winifred | B70: ='Team Performance'!A15 -> Team B | C70: ='Team Performance'!E15 -> California | D70: ='Team Performance'!S15 -> 0.5463917526
A71: ='Team Performance'!B47 -> Amanda | B71: ='Team Performance'!A47 -> Team E | C71: ='Team Performance'!E47 -> Connecticut | D71: ='Team Performance'!S47 -> 0.5454545455
A72: ='Team Performance'!B85 -> Calista | B72: ='Team Performance'!A85 -> Team I | C72: ='Team Performance'!E85 -> Hawaii | D72: ='Team Performance'!S85 -> 0.5454545455
A73: ='Team Performance'!B23 -> Renee | B73: ='Team Performance'!A23 -> Team C | C73: ='Team Performance'!E23 -> Connecticut | D73: ='Team Performance'!S23 -> 0.5445544554
A74: ='Team Performance'!B91 -> Yolanda | B74: ='Team Performance'!A91 -> Team I | C74: ='Team Performance'!E91 -> Hawaii | D74: ='Team Performance'!S91 -> 0.5436893204
A75: ='Team Performance'!B66 -> Mallory | B75: ='Team Performance'!A66 -> Team G | C75: ='Team Performance'!E66 -> Florida | D75: ='Team Performance'!S66 -> 0.5431034483
A76: ='Team Performance'!B51 -> Quin | B76: ='Team Performance'!A51 -> Team E | C76: ='Team Performance'!E51 -> California | D76: ='Team Performance'!S51 -> 0.5420560748
A77: ='Team Performance'!B46 -> Courtney | B77: ='Team Performance'!A46 -> Team E | C77: ='Team Performance'!E46 -> Colorado | D77: ='Team Performance'!S46 -> 0.5412844037
A78: ='Team Performance'!B59 -> Patricia | B78: ='Team Performance'!A59 -> Team F | C78: ='Team Performance'!E59 -> Connecticut | D78: ='Team Performance'!S59 -> 0.5412844037
A79: ='Team Performance'!B71 -> Rae | B79: ='Team Performance'!A71 -> Team G | C79: ='Team Performance'!E71 -> Connecticut | D79: ='Team Performance'!S71 -> 0.5412844037
A80: ='Team Performance'!B93 -> Jena | B80: ='Team Performance'!A93 -> Team J | C80: ='Team Performance'!E93 -> California | D80: ='Team Performance'!S93 -> 0.5412844037
A81: ='Team Performance'!B62 -> Katelyn | B81: ='Team Performance'!A62 -> Team G | C81: ='Team Performance'!E62 -> Alabama | D81: ='Team Performance'!S62 -> 0.54
A82: ='Team Performance'!B61 -> Tatum | B82: ='Team Performance'!A61 -> Team F | C82: ='Team Performance'!E61 -> Hawaii | D82: ='Team Performance'!S61 -> 0.5392156863
A83: ='Team Performance'!B83 -> Giselle | B83: ='Team Performance'!A83 -> Team I | C83: ='Team Performance'!E83 -> Connecticut | D83: ='Team Performance'!S83 -> 0.5391304348
A84: ='Team Performance'!B78 -> Nomlanga | B84: ='Team Performance'!A78 -> Team H | C84: ='Team Performance'!E78 -> Florida | D84: ='Team Performance'!S78 -> 0.5377358491
A85: ='Team Performance'!B96 -> Jeremy | B85: ='Team Performance'!A96 -> Team J | C85: ='Team Performance'!E96 -> Florida | D85: ='Team Performance'!S96 -> 0.537037037
A86: ='Team Performance'!B102 -> Hoyt | B86: ='Team Performance'!A102 -> Team J | C86: ='Team Performance'!E102 -> Florida | D86: ='Team Performance'!S102 -> 0.537037037
A87: ='Team Performance'!B28 -> Jana | B87: ='Team Performance'!A28 -> Team C | C87: ='Team Performance'!E28 -> Colorado | D87: ='Team Performance'!S28 -> 0.5360824742
A88: ='Team Performance'!B56 -> Shelby | B88: ='Team Performance'!A56 -> Team F | C88: ='Team Performance'!E56 -> Alabama | D88: ='Team Performance'!S56 -> 0.5315315315
A89: ='Team Performance'!B65 -> Deanna | B89: ='Team Performance'!A65 -> Team G | C89: ='Team Performance'!E65 -> Connecticut | D89: ='Team Performance'!S65 -> 0.5294117647
A90: ='Team Performance'!B3 -> Amber | B90: ='Team Performance'!A3 -> Team A | C90: ='Team Performance'!E3 -> California | D90: ='Team Performance'!S3 -> 0.5288461538
A91: ='Team Performance'!B19 -> Sierra | B91: ='Team Performance'!A19 -> Team B | C91: ='Team Performance'!E19 -> Hawaii | D91: ='Team Performance'!S19 -> 0.5288461538
A92: ='Team Performance'!B37 -> Cheyenne | B92: ='Team Performance'!A37 -> Team D | C92: ='Team Performance'!E37 -> Hawaii | D92: ='Team Performance'!S37 -> 0.5277777778
A93: ='Team Performance'!B87 -> Karyn | B93: ='Team Performance'!A87 -> Team I | C93: ='Team Performance'!E87 -> California | D93: ='Team Performance'!S87 -> 0.5277777778
A94: ='Team Performance'!B36 -> Aileen | B94: ='Team Performance'!A36 -> Team D | C94: ='Team Performance'!E36 -> Florida | D94: ='Team Performance'!S36 -> 0.5225225225
A95: ='Team Performance'!B11 -> Farrah | B95: ='Team Performance'!A11 -> Team A | C95: ='Team Performance'!E11 -> Connecticut | D95: ='Team Performance'!S11 -> 0.5221238938
A96: ='Team Performance'!B55 -> Shelley | B96: ='Team Performance'!A55 -> Team F | C96: ='Team Performance'!E55 -> Hawaii | D96: ='Team Performance'!S55 -> 0.5204081633
A97: ='Team Performance'!B33 -> Daria | B97: ='Team Performance'!A33 -> Team D | C97: ='Team Performance'!E33 -> California | D97: ='Team Performance'!S33 -> 0.5192307692
A98: ='Team Performance'!B68 -> Dana | B98: ='Team Performance'!A68 -> Team G | C98: ='Team Performance'!E68 -> Alabama | D98: ='Team Performance'!S68 -> 0.5181818182
A99: ='Team Performance'!B32 -> Dara | B99: ='Team Performance'!A32 -> Team D | C99: ='Team Performance'!E32 -> Alabama | D99: ='Team Performance'!S32 -> 0.5145631068
A100: ='Team Performance'!B49 -> Zia | B100: ='Team Performance'!A49 -> Team E | C100: ='Team Performance'!E49 -> Hawaii | D100: ='Team Performance'!S49 -> 0.5145631068
A101: ='Team Performance'!B25 -> Camille | B101: ='Team Performance'!A25 -> Team C | C101: ='Team Performance'!E25 -> Hawaii | D101: ='Team Performance'!S25 -> 0.5048543689
A102: ='Team Performance'!B41 -> Kendall | B102: ='Team Performance'!A41 -> Team D | C102: ='Team Performance'!E41 -> Connecticut | D102: ='Team Performance'!S41 -> 0.32
A103: ='Team Performance'!B44 -> Nevada | B103: ='Team Performance'!A44 -> Team E | C103: ='Team Performance'!E44 -> Alabama | D103: ='Team Performance'!S44 -> 0.15

Sheet Bottom 10 Team
A1: ='Team Performance'!B1 -> Team Members | B1: ='Team Performance'!A1 -> Team | C1: ='Team Performance'!E1 -> Region | D1: ='Team Performance'!S1 -> CSAT% (Customer Satisfaction)
A2: ='Team Performance'!B44 -> Nevada | B2: ='Team Performance'!A44 -> Team E | C2: ='Team Performance'!E44 -> Alabama | D2: ='Team Performance'!S44 -> 0.15
A3: ='Team Performance'!B41 -> Kendall | B3: ='Team Performance'!A41 -> Team D | C3: ='Team Performance'!E41 -> Connecticut | D3: ='Team Performance'!S41 -> 0.32
A4: ='Team Performance'!B25 -> Camille | B4: ='Team Performance'!A25 -> Team C | C4: ='Team Performance'!E25 -> Hawaii | D4: ='Team Performance'!S25 -> 0.5048543689
A5: ='Team Performance'!B32 -> Dara | B5: ='Team Performance'!A32 -> Team D | C5: ='Team Performance'!E32 -> Alabama | D5: ='Team Performance'!S32 -> 0.5145631068
A6: ='Team Performance'!B49 -> Zia | B6: ='Team Performance'!A49 -> Team E | C6: ='Team Performance'!E49 -> Hawaii | D6: ='Team Performance'!S49 -> 0.5145631068
A7: ='Team Performance'!B68 -> Dana | B7: ='Team Performance'!A68 -> Team G | C7: ='Team Performance'!E68 -> Alabama | D7: ='Team Performance'!S68 -> 0.5181818182
A8: ='Team Performance'!B33 -> Daria | B8: ='Team Performance'!A33 -> Team D | C8: ='Team Performance'!E33 -> California | D8: ='Team Performance'!S33 -> 0.5192307692
A9: ='Team Performance'!B55 -> Shelley | B9: ='Team Performance'!A55 -> Team F | C9: ='Team Performance'!E55 -> Hawaii | D9: ='Team Performance'!S55 -> 0.5204081633
A10: ='Team Performance'!B11 -> Farrah | B10: ='Team Performance'!A11 -> Team A | C10: ='Team Performance'!E11 -> Connecticut | D10: ='Team Performance'!S11 -> 0.5221238938
A11: ='Team Performance'!B36 -> Aileen | B11: ='Team Performance'!A36 -> Team D | C11: ='Team Performance'!E36 -> Florida | D11: ='Team Performance'!S36 -> 0.5225225225
A12: ='Team Performance'!B37 -> Cheyenne | B12: ='Team Performance'!A37 -> Team D | C12: ='Team Performance'!E37 -> Hawaii | D12: ='Team Performance'!S37 -> 0.5277777778
A13: ='Team Performance'!B87 -> Karyn | B13: ='Team Performance'!A87 -> Team I | C13: ='Team Performance'!E87 -> California | D13: ='Team Performance'!S87 -> 0.5277777778
A14: ='Team Performance'!B3 -> Amber | B14: ='Team Performance'!A3 -> Team A | C14: ='Team Performance'!E3 -> California | D14: ='Team Performance'!S3 -> 0.5288461538
A15: ='Team Performance'!B19 -> Sierra | B15: ='Team Performance'!A19 -> Team B | C15: ='Team Performance'!E19 -> Hawaii | D15: ='Team Performance'!S19 -> 0.5288461538
A16: ='Team Performance'!B65 -> Deanna | B16: ='Team Performance'!A65 -> Team G | C16: ='Team Performance'!E65 -> Connecticut | D16: ='Team Performance'!S65 -> 0.5294117647
A17: ='Team Performance'!B56 -> Shelby | B17: ='Team Performance'!A56 -> Team F | C17: ='Team Performance'!E56 -> Alabama | D17: ='Team Performance'!S56 -> 0.5315315315
A18: ='Team Performance'!B28 -> Jana | B18: ='Team Performance'!A28 -> Team C | C18: ='Team Performance'!E28 -> Colorado | D18: ='Team Performance'!S28 -> 0.5360824742
A19: ='Team Performance'!B96 -> Jeremy | B19: ='Team Performance'!A96 -> Team J | C19: ='Team Performance'!E96 -> Florida | D19: ='Team Performance'!S96 -> 0.537037037
A20: ='Team Performance'!B102 -> Hoyt | B20: ='Team Performance'!A102 -> Team J | C20: ='Team Performance'!E102 -> Florida | D20: ='Team Performance'!S102 -> 0.537037037
A21: ='Team Performance'!B78 -> Nomlanga | B21: ='Team Performance'!A78 -> Team H | C21: ='Team Performance'!E78 -> Florida | D21: ='Team Performance'!S78 -> 0.5377358491
A22: ='Team Performance'!B83 -> Giselle | B22: ='Team Performance'!A83 -> Team I | C22: ='Team Performance'!E83 -> Connecticut | D22: ='Team Performance'!S83 -> 0.5391304348
A23: ='Team Performance'!B61 -> Tatum | B23: ='Team Performance'!A61 -> Team F | C23: ='Team Performance'!E61 -> Hawaii | D23: ='Team Performance'!S61 -> 0.5392156863
A24: ='Team Performance'!B62 -> Katelyn | B24: ='Team Performance'!A62 -> Team G | C24: ='Team Performance'!E62 -> Alabama | D24: ='Team Performance'!S62 -> 0.54
A25: ='Team Performance'!B46 -> Courtney | B25: ='Team Performance'!A46 -> Team E | C25: ='Team Performance'!E46 -> Colorado | D25: ='Team Performance'!S46 -> 0.5412844037
A26: ='Team Performance'!B59 -> Patricia | B26: ='Team Performance'!A59 -> Team F | C26: ='Team Performance'!E59 -> Connecticut | D26: ='Team Performance'!S59 -> 0.5412844037
A27: ='Team Performance'!B71 -> Rae | B27: ='Team Performance'!A71 -> Team G | C27: ='Team Performance'!E71 -> Connecticut | D27: ='Team Performance'!S71 -> 0.5412844037
A28: ='Team Performance'!B93 -> Jena | B28: ='Team Performance'!A93 -> Team J | C28: ='Team Performance'!E93 -> California | D28: ='Team Performance'!S93 -> 0.5412844037
A29: ='Team Performance'!B51 -> Quin | B29: ='Team Performance'!A51 -> Team E | C29: ='Team Performance'!E51 -> California | D29: ='Team Performance'!S51 -> 0.5420560748
A30: ='Team Performance'!B66 -> Mallory | B30: ='Team Performance'!A66 -> Team G | C30: ='Team Performance'!E66 -> Florida | D30: ='Team Performance'!S66 -> 0.5431034483
A31: ='Team Performance'!B91 -> Yolanda | B31: ='Team Performance'!A91 -> Team I | C31: ='Team Performance'!E91 -> Hawaii | D31: ='Team Performance'!S91 -> 0.5436893204
A32: ='Team Performance'!B23 -> Renee | B32: ='Team Performance'!A23 -> Team C | C32: ='Team Performance'!E23 -> Connecticut | D32: ='Team Performance'!S23 -> 0.5445544554
A33: ='Team Performance'!B47 -> Amanda | B33: ='Team Performance'!A47 -> Team E | C33: ='Team Performance'!E47 -> Connecticut | D33: ='Team Performance'!S47 -> 0.5454545455
A34: ='Team Performance'!B85 -> Calista | B34: ='Team Performance'!A85 -> Team I | C34: ='Team Performance'!E85 -> Hawaii | D34: ='Team Performance'!S85 -> 0.5454545455
A35: ='Team Performance'!B9 -> Guinevere | B35: ='Team Performance'!A9 -> Team A | C35: ='Team Performance'!E9 -> California | D35: ='Team Performance'!S9 -> 0.5463917526
A36: ='Team Performance'!B15 -> Winifred | B36: ='Team Performance'!A15 -> Team B | C36: ='Team Performance'!E15 -> California | D36: ='Team Performance'!S15 -> 0.5463917526
A37: ='Team Performance'!B77 -> Ashely | B37: ='Team Performance'!A77 -> Team H | C37: ='Team Performance'!E77 -> Connecticut | D37: ='Team Performance'!S77 -> 0.5471698113
A38: ='Team Performance'!B13 -> Quyn | B38: ='Team Performance'!A13 -> Team B | C38: ='Team Performance'!E13 -> Hawaii | D38: ='Team Performance'!S13 -> 0.5480769231
A39: ='Team Performance'!B63 -> Pamela | B39: ='Team Performance'!A63 -> Team G | C39: ='Team Performance'!E63 -> California | D39: ='Team Performance'!S63 -> 0.5486725664
A40: ='Team Performance'!B26 -> Shaine | B40: ='Team Performance'!A26 -> Team C | C40: ='Team Performance'!E26 -> Alabama | D40: ='Team Performance'!S26 -> 0.55
A41: ='Team Performance'!B81 -> Hilary | B41: ='Team Performance'!A81 -> Team H | C41: ='Team Performance'!E81 -> California | D41: ='Team Performance'!S81 -> 0.5504587156
A42: ='Team Performance'!B90 -> Melodie | B42: ='Team Performance'!A90 -> Team I | C42: ='Team Performance'!E90 -> Florida | D42: ='Team Performance'!S90 -> 0.5508474576
A43: ='Team Performance'!B14 -> Xantha | B43: ='Team Performance'!A14 -> Team B | C43: ='Team Performance'!E14 -> Alabama | D43: ='Team Performance'!S14 -> 0.5514018692
A44: ='Team Performance'!B97 -> Oscar | B44: ='Team Performance'!A97 -> Team J | C44: ='Team Performance'!E97 -> Hawaii | D44: ='Team Performance'!S97 -> 0.5514018692
A45: ='Team Performance'!B103 -> Abel | B45: ='Team Performance'!A103 -> Team J | C45: ='Team Performance'!E103 -> Hawaii | D45: ='Team Performance'!S103 -> 0.5514018692
A46: ='Team Performance'!B22 -> Illana | B46: ='Team Performance'!A22 -> Team C | C46: ='Team Performance'!E22 -> Colorado | D46: ='Team Performance'!S22 -> 0.5544554455
A47: ='Team Performance'!B24 -> Olympia | B47: ='Team Performance'!A24 -> Team C | C47: ='Team Performance'!E24 -> Florida | D47: ='Team Performance'!S24 -> 0.5544554455
A48: ='Team Performance'!B38 -> Lois | B48: ='Team Performance'!A38 -> Team D | C48: ='Team Performance'!E38 -> Alabama | D48: ='Team Performance'!S38 -> 0.5545454545
A49: ='Team Performance'!B40 -> Ariana | B49: ='Team Performance'!A40 -> Team D | C49: ='Team Performance'!E40 -> Colorado | D49: ='Team Performance'!S40 -> 0.5545454545
A50: ='Team Performance'!B69 -> Regina | B50: ='Team Performance'!A69 -> Team G | C50: ='Team Performance'!E69 -> California | D50: ='Team Performance'!S69 -> 0.5555555556
A51: ='Team Performance'!B17 -> Keelie | B51: ='Team Performance'!A17 -> Team B | C51: ='Team Performance'!E17 -> Connecticut | D51: ='Team Performance'!S17 -> 0.5575221239
A52: ='Team Performance'!B94 -> Fleur | B52: ='Team Performance'!A94 -> Team J | C52: ='Team Performance'!E94 -> Colorado | D52: ='Team Performance'!S94 -> 0.5585585586
A53: ='Team Performance'!B31 -> April | B53: ='Team Performance'!A31 -> Team C | C53: ='Team Performance'!E31 -> Hawaii | D53: ='Team Performance'!S31 -> 0.5588235294
A54: ='Team Performance'!B64 -> Rhoda | B54: ='Team Performance'!A64 -> Team G | C54: ='Team Performance'!E64 -> Colorado | D54: ='Team Performance'!S64 -> 0.5588235294
A55: ='Team Performance'!B74 -> Carolyn | B55: ='Team Performance'!A74 -> Team H | C55: ='Team Performance'!E74 -> Alabama | D55: ='Team Performance'!S74 -> 0.56
A56: ='Team Performance'!B86 -> Juliet | B56: ='Team Performance'!A86 -> Team I | C56: ='Team Performance'!E86 -> Alabama | D56: ='Team Performance'!S86 -> 0.5625
A57: ='Team Performance'!B45 -> Mercedes | B57: ='Team Performance'!A45 -> Team E | C57: ='Team Performance'!E45 -> California | D57: ='Team Performance'!S45 -> 0.5631067961
A58: ='Team Performance'!B100 -> Alec | B58: ='Team Performance'!A100 -> Team J | C58: ='Team Performance'!E100 -> Colorado | D58: ='Team Performance'!S100 -> 0.5636363636
A59: ='Team Performance'!B42 -> Lacy | B59: ='Team Performance'!A42 -> Team E | C59: ='Team Performance'!E42 -> Florida | D59: ='Team Performance'!S42 -> 0.5643564356
A60: ='Team Performance'!B53 -> Stacy | B60: ='Team Performance'!A53 -> Team F | C60: ='Team Performance'!E53 -> Connecticut | D60: ='Team Performance'!S53 -> 0.5660377358
A61: ='Team Performance'!B34 -> Ariel | B61: ='Team Performance'!A34 -> Team D | C61: ='Team Performance'!E34 -> Colorado | D61: ='Team Performance'!S34 -> 0.5689655172
A62: ='Team Performance'!B48 -> Madeline | B62: ='Team Performance'!A48 -> Team E | C62: ='Team Performance'!E48 -> Florida | D62: ='Team Performance'!S48 -> 0.5691056911
A63: ='Team Performance'!B60 -> Britanney | B63: ='Team Performance'!A60 -> Team F | C63: ='Team Performance'!E60 -> Florida | D63: ='Team Performance'!S60 -> 0.57
A64: ='Team Performance'!B6 -> Libby | B64: ='Team Performance'!A6 -> Team A | C64: ='Team Performance'!E6 -> Florida | D64: ='Team Performance'!S6 -> 0.5714285714
A65: ='Team Performance'!B89 -> Portia | B65: ='Team Performance'!A89 -> Team I | C65: ='Team Performance'!E89 -> Connecticut | D65: ='Team Performance'!S89 -> 0.5714285714
A66: ='Team Performance'!B92 -> Serina | B66: ='Team Performance'!A92 -> Team I | C66: ='Team Performance'!E92 -> Alabama | D66: ='Team Performance'!S92 -> 0.5727272727
A67: ='Team Performance'!B99 -> Addison | B67: ='Team Performance'!A99 -> Team J | C67: ='Team Performance'!E99 -> California | D67: ='Team Performance'!S99 -> 0.572815534
A68: ='Team Performance'!B70 -> Kirby | B68: ='Team Performance'!A70 -> Team G | C68: ='Team Performance'!E70 -> Colorado | D68: ='Team Performance'!S70 -> 0.5740740741
A69: ='Team Performance'!B5 -> Nola | B69: ='Team Performance'!A5 -> Team A | C69: ='Team Performance'!E5 -> Connecticut | D69: ='Team Performance'!S5 -> 0.5754716981
A70: ='Team Performance'!B8 -> Flavia | B70: ='Team Performance'!A8 -> Team A | C70: ='Team Performance'!E8 -> Alabama | D70: ='Team Performance'!S8 -> 0.5754716981
A71: ='Team Performance'!B20 -> Gay | B71: ='Team Performance'!A20 -> Team B | C71: ='Team Performance'!E20 -> Alabama | D71: ='Team Performance'!S20 -> 0.5754716981
A72: ='Team Performance'!B54 -> Dai | B72: ='Team Performance'!A54 -> Team F | C72: ='Team Performance'!E54 -> Florida | D72: ='Team Performance'!S54 -> 0.5754716981
A73: ='Team Performance'!B67 -> Medge | B73: ='Team Performance'!A67 -> Team G | C73: ='Team Performance'!E67 -> Hawaii | D73: ='Team Performance'!S67 -> 0.5757575758
A74: ='Team Performance'!B2 -> Sydnee | B74: ='Team Performance'!A2 -> Team A | C74: ='Team Performance'!E2 -> Alabama | D74: ='Team Performance'!S2 -> 0.5765765766
A75: ='Team Performance'!B30 -> Rosalyn | B75: ='Team Performance'!A30 -> Team C | C75: ='Team Performance'!E30 -> Florida | D75: ='Team Performance'!S30 -> 0.5765765766
A76: ='Team Performance'!B72 -> Frances | B76: ='Team Performance'!A72 -> Team H | C76: ='Team Performance'!E72 -> Florida | D76: ='Team Performance'!S72 -> 0.5765765766
A77: ='Team Performance'!B7 -> Tashya | B77: ='Team Performance'!A7 -> Team A | C77: ='Team Performance'!E7 -> Hawaii | D77: ='Team Performance'!S7 -> 0.5769230769
A78: ='Team Performance'!B35 -> Hermione | B78: ='Team Performance'!A35 -> Team D | C78: ='Team Performance'!E35 -> Connecticut | D78: ='Team Performance'!S35 -> 0.5769230769
A79: ='Team Performance'!B52 -> Ivory | B79: ='Team Performance'!A52 -> Team F | C79: ='Team Performance'!E52 -> Colorado | D79: ='Team Performance'!S52 -> 0.5785123967
A80: ='Team Performance'!B18 -> Brynne | B80: ='Team Performance'!A18 -> Team B | C80: ='Team Performance'!E18 -> Florida | D80: ='Team Performance'!S18 -> 0.5803571429
A81: ='Team Performance'!B82 -> Gretchen | B81: ='Team Performance'!A82 -> Team I | C81: ='Team Performance'!E82 -> Colorado | D81: ='Team Performance'!S82 -> 0.5803571429
A82: ='Team Performance'!B88 -> Noelani | B82: ='Team Performance'!A88 -> Team I | C82: ='Team Performance'!E88 -> Colorado | D82: ='Team Performance'!S88 -> 0.5803571429
A83: ='Team Performance'!B16 -> Iona | B83: ='Team Performance'!A16 -> Team B | C83: ='Team Performance'!E16 -> Colorado | D83: ='Team Performance'!S16 -> 0.580952381
A84: ='Team Performance'!B58 -> Cleo | B84: ='Team Performance'!A58 -> Team F | C84: ='Team Performance'!E58 -> Colorado | D84: ='Team Performance'!S58 -> 0.580952381
A85: ='Team Performance'!B79 -> Kirestin | B85: ='Team Performance'!A79 -> Team H | C85: ='Team Performance'!E79 -> Hawaii | D85: ='Team Performance'!S79 -> 0.580952381
A86: ='Team Performance'!B75 -> Zenia | B86: ='Team Performance'!A75 -> Team H | C86: ='Team Performance'!E75 -> California | D86: ='Team Performance'!S75 -> 0.5818181818
A87: ='Team Performance'!B21 -> Inez | B87: ='Team Performance'!A21 -> Team B | C87: ='Team Performance'!E21 -> California | D87: ='Team Performance'!S21 -> 0.5833333333
A88: ='Team Performance'!B27 -> Maris | B88: ='Team Performance'!A27 -> Team C | C88: ='Team Performance'!E27 -> California | D88: ='Team Performance'!S27 -> 0.5840707965
A89: ='Team Performance'!B43 -> Heather | B89: ='Team Performance'!A43 -> Team E | C89: ='Team Performance'!E43 -> Hawaii | D89: ='Team Performance'!S43 -> 0.5841584158
A90: ='Team Performance'!B80 -> Serena | B90: ='Team Performance'!A80 -> Team H | C90: ='Team Performance'!E80 -> Alabama | D90: ='Team Performance'!S80 -> 0.5849056604
A91: ='Team Performance'!B10 -> Darryl | B91: ='Team Performance'!A10 -> Team A | C91: ='Team Performance'!E10 -> Colorado | D91: ='Team Performance'!S10 -> 0.5862068966
A92: ='Team Performance'!B95 -> Illiana | B92: ='Team Performance'!A95 -> Team J | C92: ='Team Performance'!E95 -> Connecticut | D92: ='Team Performance'!S95 -> 0.5865384615
A93: ='Team Performance'!B84 -> Galena | B93: ='Team Performance'!A84 -> Team I | C93: ='Team Performance'!E84 -> Florida | D93: ='Team Performance'!S84 -> 0.5882352941
A94: ='Team Performance'!B12 -> Rowan | B94: ='Team Performance'!A12 -> Team B | C94: ='Team Performance'!E12 -> Florida | D94: ='Team Performance'!S12 -> 0.5918367347
A95: ='Team Performance'!B76 -> Phyllis | B95: ='Team Performance'!A76 -> Team H | C95: ='Team Performance'!E76 -> Colorado | D95: ='Team Performance'!S76 -> 0.5940594059
A96: ='Team Performance'!B39 -> Madeson | B96: ='Team Performance'!A39 -> Team D | C96: ='Team Performance'!E39 -> California | D96: ='Team Performance'!S39 -> 0.5945945946
A97: ='Team Performance'!B101 -> Rafael | B97: ='Team Performance'!A101 -> Team J | C97: ='Team Performance'!E101 -> Connecticut | D97: ='Team Performance'!S101 -> 0.5981308411
A98: ='Team Performance'!B29 -> Audra | B98: ='Team Performance'!A29 -> Team C | C98: ='Team Performance'!E29 -> Connecticut | D98: ='Team Performance'!S29 -> 0.5982142857
A99: ='Team Performance'!B73 -> Xerxes | B99: ='Team Performance'!A73 -> Team H | C99: ='Team Performance'!E73 -> Hawaii | D99: ='Team Performance'!S73 -> 0.5982142857
A100: ='Team Performance'!B98 -> Luke | B100: ='Team Performance'!A98 -> Team J | C100: ='Team Performance'!E98 -> Alabama | D100: ='Team Performance'!S98 -> 0.6057692308
A101: ='Team Performance'!B57 -> Riley | B101: ='Team Performance'!A57 -> Team F | C101: ='Team Performance'!E57 -> California | D101: ='Team Performance'!S57 -> 0.623853211
A102: ='Team Performance'!B50 -> Miriam | B102: ='Team Performance'!A50 -> Team E | C102: ='Team Performance'!E50 -> Alabama | D102: ='Team Performance'!S50 -> 0.6306306306
A103: ='Team Performance'!B4 -> Constance | B103: ='Team Performance'!A4 -> Team A | C103: ='Team Performance'!E4 -> Colorado | D103: ='Team Performance'!S4 -> 0.6371681416

Sheet Top Bottom 10 Revenue
F1: Team | G1: $ Revenue | H1: Revenue % | I1: Team Members | J1: Revenue | L1: Jeremy | M1: 1020
F2: Team I | G2: 24446 | H2: =G2/$G$12 -> 0.1266960352 | I2: Zia | J2: 2890 | L2: Madeson | M2: 1054
F3: Team G | G3: 22644 | H3: =G3/$G$12 -> 0.1173568282 | I3: Farrah | J3: 2856 | L3: Oscar | M3: 1088
F4: Team E | G4: 22440 | H4: 0.1162995595 | I4: Dana | J4: 2788 | L4: Gay | M4: 1122
F5: Team C | G5: 20570 | H5: 0.1066079295 | I5: Rowan | J5: 2720 | L5: Patricia | M5: 1156
F6: Team A | G6: 19652 | H6: 0.1018502203 | I6: Miriam | J6: 2686 | L6: Britanney | M6: 1190
F7: Team B | G7: 18428 | H7: 0.09550660793 | I7: Juliet | J7: 2686 | L7: Cleo | M7: 1190
F8: Team J | G8: 17204 | H8: 0.08916299559 | I8: Karyn | J8: 2686 | L8: Illana | M8: 1190
F9: Team D | G9: 16388 | H9: 0.0849339207 | I9: Madeline | J9: 2652 | L9: Sierra | M9: 1190
F10: Team F | G10: 15878 | H10: 0.0822907489 | I10: Rosalyn | J10: 2584 | L10: Ashely | M10: 1224
F11: Team H | G11: 15300 | H11: 0.07929515419 | I11: Darryl | J11: 2550 | L11: Kirestin | M11: 1224
G12: =SUM(G2:G11) -> 192950 | I12: Regina | J12: 2550 | L12: Lois | M12: 1224
I13: Jana | J13: 2448 | L13: Phyllis | M13: 1258
I14: Quyn | J14: 2414 | L14: Sydnee | M14: 1258
F15: Region | I15: Audra | J15: 2414 | L15: Nomlanga | M15: 1292
F16: Alabama | G16: =SUMIF('Team Performance'!$E:$E,$F16,'Team Performance'!$K:$K) -> 32334 | H16: =G16/$G$22 -> 0.1675770925 | I16: Noelani | J16: 2414 | L16: Amber | M16: 1326
F17: California | G17: =SUMIF('Team Performance'!$E:$E,$F17,'Team Performance'!$K:$K) -> 31994 | H17: =G17/$G$22 -> 0.165814978 | I17: April | J17: 2380 | L17: Ariana | M17: 1326
F18: Colorado | G18: =SUMIF('Team Performance'!$E:$E,$F18,'Team Performance'!$K:$K) -> 31586 | H18: 0.1637004405 | I18: Medge | J18: 2380 | L18: Inez | M18: 1360
F19: Connecticut | G19: =SUMIF('Team Performance'!$E:$E,$F19,'Team Performance'!$K:$K) -> 32436 | H19: 0.1681057269 | I19: Rae | J19: 2380 | L19: Luke | M19: 1360
F20: Florida | G20: =SUMIF('Team Performance'!$E:$E,$F20,'Team Performance'!$K:$K) -> 32300 | H20: 0.1674008811 | I20: Guinevere | J20: 2346 | L20: Serena | M20: 1360
F21: Hawaii | G21: =SUMIF('Team Performance'!$E:$E,$F21,'Team Performance'!$K:$K) -> 32300 | H21: 0.1674008811 | I21: Xantha | J21: 2346 | L21: Constance | M21: 1394
G22: =SUM(G16:G21) -> 192950 | I22: Mallory | J22: 2346 | L22: Illiana | M22: 1428
I23: Dara | J23: 2312 | L23: Addison | M23: 1462
I24: Courtney | J24: 2312 | L24: Riley | M24: 1462
I25: Melodie | J25: 2312 | L25: Tatum | M25: 1462
I26: Amanda | J26: 2278 | L26: Brynne | M26: 1496
I27: Quin | J27: 2244 | L27: Cheyenne | M27: 1496
I28: Kirby | J28: 2244 | L28: Kendall | M28: 1496
I29: Portia | J29: 2244 | L29: Zenia | M29: 1564
I30: Daria | J30: 2210 | L30: Heather | M30: 1598
I31: Mercedes | J31: 2210 | L31: Lacy | M31: 1598
I32: Stacy | J32: 2210 | L32: Shelby | M32: 1598
I33: Deanna | J33: 2210 | L33: Renee | M33: 1632
I34: Calista | J34: 2210 | L34: Aileen | M34: 1666
I35: Tashya | J35: 2176 | L35: Fleur | M35: 1666
I36: Maris | J36: 2176 | L36: Hilary | M36: 1666
I37: Ivory | J37: 2176 | L37: Rafael | M37: 1700
I38: Galena | J38: 2108 | L38: Shelley | M38: 1700
I39: Abel | J39: 2108 | L39: Alec | M39: 1734
I40: Rhoda | J40: 2074 | L40: Dai | M40: 1734
I41: Yolanda | J41: 2074 | L41: Hermione | M41: 1734
I42: Flavia | J42: 2040 | L42: Katelyn | M42: 1734
I43: Serina | J43: 2040 | L43: Nola | M43: 1734
I44: Shaine | J44: 2006 | L44: Gretchen | M44: 1768
I45: Xerxes | J45: 2006 | L45: Jena | M45: 1768
I46: Libby | J46: 1972 | L46: Carolyn | M46: 1802
I47: Winifred | J47: 1972 | L47: Keelie | M47: 1836
I48: Iona | J48: 1972 | L48: Olympia | M48: 1836
I49: Nevada | J49: 1972 | L49: Ariel | M49: 1870
I50: Pamela | J50: 1938 | L50: Hoyt | M50: 1870
I51: Camille | J51: 1904 | L51: Camille | M51: 1904
I52: Frances | J52: 1904 | L52: Frances | M52: 1904
I53: Giselle | J53: 1904 | L53: Giselle | M53: 1904
I54: Ariel | J54: 1870 | L54: Pamela | M54: 1938
I55: Hoyt | J55: 1870 | L55: Iona | M55: 1972
I56: Keelie | J56: 1836 | L56: Libby | M56: 1972
I57: Olympia | J57: 1836 | L57: Nevada | M57: 1972
I58: Carolyn | J58: 1802 | L58: Winifred | M58: 1972
I59: Gretchen | J59: 1768 | L59: Shaine | M59: 2006
I60: Jena | J60: 1768 | L60: Xerxes | M60: 2006
I61: Nola | J61: 1734 | L61: Flavia | M61: 2040
I62: Hermione | J62: 1734 | L62: Serina | M62: 2040
I63: Dai | J63: 1734 | L63: Rhoda | M63: 2074
I64: Katelyn | J64: 1734 | L64: Yolanda | M64: 2074
I65: Alec | J65: 1734 | L65: Abel | M65: 2108
I66: Shelley | J66: 1700 | L66: Galena | M66: 2108
I67: Rafael | J67: 1700 | L67: Ivory | M67: 2176
I68: Aileen | J68: 1666 | L68: Maris | M68: 2176
I69: Hilary | J69: 1666 | L69: Tashya | M69: 2176
I70: Fleur | J70: 1666 | L70: Calista | M70: 2210
I71: Renee | J71: 1632 | L71: Daria | M71: 2210
I72: Lacy | J72: 1598 | L72: Deanna | M72: 2210
I73: Heather | J73: 1598 | L73: Mercedes | M73: 2210
I74: Shelby | J74: 1598 | L74: Stacy | M74: 2210
I75: Zenia | J75: 1564 | L75: Kirby | M75: 2244
I76: Brynne | J76: 1496 | L76: Portia | M76: 2244
I77: Cheyenne | J77: 1496 | L77: Quin | M77: 2244
I78: Kendall | J78: 1496 | L78: Amanda | M78: 2278
I79: Riley | J79: 1462 | L79: Courtney | M79: 2312
I80: Tatum | J80: 1462 | L80: Dara | M80: 2312
I81: Addison | J81: 1462 | L81: Melodie | M81: 2312
I82: Illiana | J82: 1428 | L82: Guinevere | M82: 2346
I83: Constance | J83: 1394 | L83: Mallory | M83: 2346
I84: Inez | J84: 1360 | L84: Xantha | M84: 2346
I85: Serena | J85: 1360 | L85: April | M85: 2380
I86: Luke | J86: 1360 | L86: Medge | M86: 2380
I87: Amber | J87: 1326 | L87: Rae | M87: 2380
I88: Ariana | J88: 1326 | L88: Audra | M88: 2414
I89: Nomlanga | J89: 1292 | L89: Noelani | M89: 2414
I90: Sydnee | J90: 1258 | L90: Quyn | M90: 2414
I91: Phyllis | J91: 1258 | L91: Jana | M91: 2448
I92: Lois | J92: 1224 | L92: Darryl | M92: 2550
I93: Ashely | J93: 1224 | L93: Regina | M93: 2550
I94: Kirestin | J94: 1224 | L94: Rosalyn | M94: 2584
I95: Sierra | J95: 1190 | L95: Madeline | M95: 2652
I96: Illana | J96: 1190 | L96: Juliet | M96: 2686
I97: Cleo | J97: 1190 | L97: Karyn | M97: 2686
I98: Britanney | J98: 1190 | L98: Miriam | M98: 2686
I99: Patricia | J99: 1156 | L99: Rowan | M99: 2720
I100: Gay | J100: 1122 | L100: Dana | M100: 2788
I101: Oscar | J101: 1088 | L101: Farrah | M101: 2856
I102: Madeson | J102: 1054 | L102: Zia | M102: 2890
I103: Jeremy | J103: 1020 | L103: Team Members | M103: Revenue
